Body Name,Body,Service Level,Expense Type,Expense Code,Narrative,Date,Transaction Number,Amount,Capital and Revenue,Supplier Name,Supplier ID
South Ribble Council,http://statistics.data.gov.uk/doc/local-authority/30UN,Information Services,Capital Expenditure,C234,Otterbox defender,06/01/2016,0000389198,402.90,Revenue,ACS SYSTEMS UK LTD,00070166
South Ribble Council,http://statistics.data.gov.uk/doc/local-authority/30UN,Information Services,Capital Expenditure,C234,Samsung Galaxy note 4,06/01/2016,0000389236,379.00,Revenue,ACS SYSTEMS UK LTD,00070166
South Ribble Council,http://statistics.data.gov.uk/doc/local-authority/30UN,Revenues Plus,Financial,4811,post office trans,06/01/2016,0000394260,"1,204.37",Revenue,ALLPAY LTD,00122276
South Ribble Council,http://statistics.data.gov.uk/doc/local-authority/30UN,Revenues Plus,Financial,4811,webconnrct,06/01/2016,0000394260,46.00,Revenue,ALLPAY LTD,00122276
South Ribble Council,http://statistics.data.gov.uk/doc/local-authority/30UN,Revenues Plus,Financial,4811,paypoint,06/01/2016,0000394260,163.40,Revenue,ALLPAY LTD,00122276
South Ribble Council,http://statistics.data.gov.uk/doc/local-authority/30UN,Area 2 - Waste Transport/Eastern & Central Teams,External Contractors Charges,4570,DOMESTIC WASTE COLLECTIONS 1.6.15 - 12.6.15,06/01/2016,0000352963,"33,740.64",Revenue,AMEY :RE ENTERPRISE,131265
South Ribble Council,http://statistics.data.gov.uk/doc/local-authority/30UN,Area 2 - Waste Transport/Eastern & Central Teams,External Contractors Charges,4570,COMMERCIAL WASTE COLLECTIONS 1.6.15 - 12.6.15,06/01/2016,0000352963,"2,616.92",Revenue,AMEY :RE ENTERPRISE,131265
South Ribble Council,http://statistics.data.gov.uk/doc/local-authority/30UN,Area 2 - Waste Transport/Eastern & Central Teams,External Contractors Charges,4570,FOOD WASTE COLLECTIONS 1.6.15 - 12.6.15,06/01/2016,0000352963,"2,510.47",Revenue,AMEY :RE ENTERPRISE,131265
South Ribble Council,http://statistics.data.gov.uk/doc/local-authority/30UN,Area 2 - Waste Transport/Eastern & Central Teams,External Contractors Charges,4570,DRY RECYCLING COLLECTIONS 1.6.15 - 12.6.15,06/01/2016,0000352963,"28,181.19",Revenue,AMEY :RE ENTERPRISE,131265
South Ribble Council,http://statistics.data.gov.uk/doc/local-authority/30UN,Area 2 - Waste Transport/Eastern & Central Teams,Balance Sheet,0031,RELEASE OF RETENTION MONIES 14-15,06/01/2016,0000352966,"50,212.68",Revenue,AMEY :RE ENTERPRISE,131265
South Ribble Council,http://statistics.data.gov.uk/doc/local-authority/30UN,Regeneration,Other Misc,4861,supplies,27/01/2016,0000388890,"1,190.00",Revenue,AMJ LTD (THE STATIONERY STORE),00096946
South Ribble Council,http://statistics.data.gov.uk/doc/local-authority/30UN,Housing,Cap Grant- Improve Grants,C570,DFG WORKS wetroom work at ADDRESS REDACTED,13/01/2016,0000389229,"2,996.44",Revenue,APG DOMESTIC SERVICES,00061463
South Ribble Council,http://statistics.data.gov.uk/doc/local-authority/30UN,Revenues Plus,Professional Fees,4520,Council Tax Training course - 26.1.16 ,22/01/2016,0000395159,250.00,Revenue,ARVATO GOVERNMENT SERVICES LTD,130314
South Ribble Council,http://statistics.data.gov.uk/doc/local-authority/30UN,Information Services,Peripherals,4248,E-Genda Committee Administration System (incl. Support & Maintenance Service) 01/02/16 - 31/01/17,13/01/2016,0000394559,"4,630.00",Revenue,ASSOCIATED KNOWLEDGE SYSTEMS LTD,00095251
South Ribble Council,http://statistics.data.gov.uk/doc/local-authority/30UN,Area 1 - Penwortham Western Parishes,Materials General,4040,"PARKING PERMITS - 2 KINDS HOLOGRAPHIC FOILED IN ONE POSITION ONE SIDEGLOSS LAM",08/01/2016,0000389355,449.00,Revenue,B & D PRINT SERVICES LTD,00015134
South Ribble Council,http://statistics.data.gov.uk/doc/local-authority/30UN,Housing,Cap Grant- Improve Grants,C570,DFG Works for Ground Floor Bedroom and Bathroom facilities at ADDRESS REDACTED,13/01/2016,0000394444,"14,440.00",Revenue,Base Construction and Maintenance Ltd,131507
South Ribble Council,http://statistics.data.gov.uk/doc/local-authority/30UN,Development Enterprise & Comm Mgnt,Other Misc,4861,"Electrical equipment for 2 pillars on Hough Lane, Leyland",13/01/2016,0000389395,381.00,Revenue,BELEC ELECTRICAL LTD,130290
South Ribble Council,http://statistics.data.gov.uk/doc/local-authority/30UN,Regeneration,Other Misc,4851,Electrical Work on Lighting,08/01/2016,0000389399,572.06,Revenue,BELEC ELECTRICAL LTD,130290
South Ribble Council,http://statistics.data.gov.uk/doc/local-authority/30UN,Property Services,Rep & Maint Premises,2020,Please upgrade the electrical supply main board in ADDRESS REDACTED. Provide a certificate,20/01/2016,0000394867,490.21,Revenue,BELEC ELECTRICAL LTD,130290
South Ribble Council,http://statistics.data.gov.uk/doc/local-authority/30UN,Property Services,Rep & Maint Premises,2020,Attend Leyland Market and spilt the electrical supply into two - supply new mains units and electrical ,22/01/2016,0000395229,295.59,Revenue,BELEC ELECTRICAL LTD,130290
South Ribble Council,http://statistics.data.gov.uk/doc/local-authority/30UN,Property Services,Rep & Maint Premises,2020,Please replace the corroded light fittings in the cake stall at Leyland market,27/01/2016,0000395314,285.00,Revenue,BELEC ELECTRICAL LTD,130290
South Ribble Council,http://statistics.data.gov.uk/doc/local-authority/30UN,Housing,Contributions,4730,Cosy Homes in Lancashire payment of 4000.00 + VAT,27/01/2016,0000395216,"4,000.00",Revenue,Blackpool Council,131818
South Ribble Council,http://statistics.data.gov.uk/doc/local-authority/30UN,Healthy Communities,Clothing- Uniforms & Laundry,4420,laundering of tablecloths,20/01/2016,0000389457,324.37,Revenue,BLACKPOOL LAUNDRY COMPANY LTD,00119085
South Ribble Council,http://statistics.data.gov.uk/doc/local-authority/30UN,Development Enterprise & Comm Mgnt,Other Misc,4851,"Invoice fo 699.60 for display lectern for Hope Terrace, Lostock Hall",13/01/2016,0000394295,525.00,Revenue,BORDER SIGNS AND GRAPHIX,130927
South Ribble Council,http://statistics.data.gov.uk/doc/local-authority/30UN,Development Enterprise & Comm Mgnt,Other Misc,4851,carriage,13/01/2016,0000394295,58.00,Revenue,BORDER SIGNS AND GRAPHIX,130927
South Ribble Council,http://statistics.data.gov.uk/doc/local-authority/30UN,HR & Communications,Training Expense-Course Fees,1405,EMPLOYEE SURVEY 2015,06/01/2016,0000389410,"1,200.00",Revenue,BOROUGH OF PENDLE,130070
South Ribble Council,http://statistics.data.gov.uk/doc/local-authority/30UN,Regeneration,Capital Expenditure,C234,Ecology Service,13/01/2016,0000394399,985.00,Revenue,Bowland Ecology Ltd,131460
South Ribble Council,http://statistics.data.gov.uk/doc/local-authority/30UN,Property Services,Rep & Maint Premises,2021,"Annual contract 2015/2016 for care plan 3 at Moss Side Depot, ADDRESS REDACTED, Leyland",06/01/2016,0000389360,"1,688.00",Revenue,BRITISH GAS SERVICES (COMMERCIAL) LTD,00016214
South Ribble Council,http://statistics.data.gov.uk/doc/local-authority/30UN,Property Services,Rep & Maint Premises,2021,"Annual contract 2015/2016 for care plan 3 at ADDRESS REDACTED Moss Side, Leyland",06/01/2016,0000389367,"1,133.23",Revenue,BRITISH GAS SERVICES (COMMERCIAL) LTD,00016214
South Ribble Council,http://statistics.data.gov.uk/doc/local-authority/30UN,Healthy Communities,Other Misc,4851,"Payment for Neil Quinn Rugby Coaching for the � Active school� coaching programme Sept March 2016",08/01/2016,0000389226,500.00,Revenue,BROWNEDGE ST MARYS R C HIGH SCHOOL,00015707
South Ribble Council,http://statistics.data.gov.uk/doc/local-authority/30UN,Healthy Communities,Other Misc,4851,"Payment for Jacqui Lowe  Tennis Coaching for the � Active school� coaching programme Sept March 16",08/01/2016,0000389227,680.00,Revenue,BROWNEDGE ST MARYS R C HIGH SCHOOL,00015707
South Ribble Council,http://statistics.data.gov.uk/doc/local-authority/30UN,Healthy Communities,Other Misc,4851,"Payment for Rachel Morris Coaching for the � Active school� coaching programme Sept � March 2016",20/01/2016,0000394951,825.00,Revenue,BROWNEDGE ST MARYS R C HIGH SCHOOL,00015707
South Ribble Council,http://statistics.data.gov.uk/doc/local-authority/30UN,Healthy Communities,Other Misc,4851,"Payment for Neil Quinn Rugby Coaching for the � Active school� coaching programme Sept � March 16",20/01/2016,0000394973,500.00,Revenue,BROWNEDGE ST MARYS R C HIGH SCHOOL,00015707
South Ribble Council,http://statistics.data.gov.uk/doc/local-authority/30UN,Area 3 - Parks/Leyland East West,Grounds Maint Cntrctrs Chgs,4657,Derby slimline litter bin - In black BX45 2596 as per your quote 406453/#/rev0/smi,13/01/2016,0000394296,"2,580.00",Revenue,BROXAP LTD,00028736
South Ribble Council,http://statistics.data.gov.uk/doc/local-authority/30UN,Property Services,Rep & Maint Premises,2020,Annual contract 2015 / 2016 for water dispenser rental at the Civic Centre,08/01/2016,0000394318,441.35,Revenue,CASCADE WATER SYSTEMS LTD,00063924
South Ribble Council,http://statistics.data.gov.uk/doc/local-authority/30UN,Housing,Contributions,4730,Cards for winter warmth scheme - To supply additional 2000 cards as per your quote of 299 plus VAT,15/01/2016,0000389385,299.00,Revenue,CDC PRINTING,00096564
South Ribble Council,http://statistics.data.gov.uk/doc/local-authority/30UN,Healthy Communities,Other Misc,4851,60 x 6`` Metallic Pom Poms @ 7.40 each   Total Price 444,22/01/2016,0000394902,370.20,Revenue,Cheerworld,131689
South Ribble Council,http://statistics.data.gov.uk/doc/local-authority/30UN,Healthy Communities,Other Misc,4851,delivery,22/01/2016,0000394902,10.00,Revenue,Cheerworld,131689
South Ribble Council,http://statistics.data.gov.uk/doc/local-authority/30UN,Homelessness,Contractors Charges 5,5311,"Cotswold house, SRBC placement NAME REDACTED first month�s stay; it will be a total 987.96 Rent",08/01/2016,0000389419,987.96,Revenue,CHORLEY BOROUGH COUNCIL,00017352
South Ribble Council,http://statistics.data.gov.uk/doc/local-authority/30UN,Homelessness,Contributions,4730,"block booking for ADDRESS REDACTED SRBC placements1st January 2016-31st March 2016",15/01/2016,0000394832,"3,210.48",Revenue,CHORLEY BOROUGH COUNCIL,00017352
South Ribble Council,http://statistics.data.gov.uk/doc/local-authority/30UN,Homelessness,Contractors Charges 5,5311,Cotswold house rent costs SRBC placement NAME REDACTED,27/01/2016,0000395304,564.48,Revenue,CHORLEY BOROUGH COUNCIL,00017352
South Ribble Council,http://statistics.data.gov.uk/doc/local-authority/30UN,Homelessness,Contractors Charges 5,5311,"Cotswold house, SRBC placement NAME REDACTED 09/12/2015 and 06/01/2016",27/01/2016,0000395513,987.96,Revenue,CHORLEY BOROUGH COUNCIL,00017352
South Ribble Council,http://statistics.data.gov.uk/doc/local-authority/30UN,Area 2 - Waste Transport/Eastern & Central Teams,External Contractors Charges,4570,SPEC REPAIR PJ62 UCG JFC6006,20/01/2016,0000394264,"1,121.30",Revenue,CICELEY COMMERCIALS LTD,00059381
South Ribble Council,http://statistics.data.gov.uk/doc/local-authority/30UN,Area 3 - Parks/Leyland East West,Grounds Maint Cntrctrs Chgs,4657,WASTE REMOVAL (WITHY GROVE ROAD),06/01/2016,0000389346,300.00,Revenue,CLIVE HURT (PLANT HIRE) LTD,00023553
South Ribble Council,http://statistics.data.gov.uk/doc/local-authority/30UN,Information Services,Capital Expenditure,C234,"3 x Dell Optiplex 780 USFF, C2D 2.93Ghz, 4GB, 160GB, Win 7 Pro 64 447.00.  Shipping & handling",08/01/2016,0000394357,447.00,Revenue,COMPUTER REMARKETING SERVICES LTD,00075763
South Ribble Council,http://statistics.data.gov.uk/doc/local-authority/30UN,Information Services,Capital Expenditure,C234,shipping & handling,08/01/2016,0000394357,15.00,Revenue,COMPUTER REMARKETING SERVICES LTD,00075763
South Ribble Council,http://statistics.data.gov.uk/doc/local-authority/30UN,Neighbourhood Admin & Support,Repair Costs,4050,WHEELS - NORMAL,06/01/2016,0000389347,144.00,Revenue,CONTAINER CARE SOLUTIONS,00106742
South Ribble Council,http://statistics.data.gov.uk/doc/local-authority/30UN,Neighbourhood Admin & Support,Repair Costs,4050,WHEELS � BRAKED,06/01/2016,0000389347,174.00,Revenue,CONTAINER CARE SOLUTIONS,00106742
South Ribble Council,http://statistics.data.gov.uk/doc/local-authority/30UN,Property Services,Rep & Maint Premises,2020,Please attend Worden park to make repairs to the door leading to the oil store tank room. ,22/01/2016,0000395234,206.25,Revenue,COOPER BESPOKE JOINERY LTD,00104456
South Ribble Council,http://statistics.data.gov.uk/doc/local-authority/30UN,Property Services,Rep & Maint Premises,2020,MATERIALS,22/01/2016,0000395234,81.00,Revenue,COOPER BESPOKE JOINERY LTD,00104456
South Ribble Council,http://statistics.data.gov.uk/doc/local-authority/30UN,Property Services,Rep & Maint Premises,2024,Change bottom lock to pavilion door supply and fit new window ,22/01/2016,0000395236,280.50,Revenue,COOPER BESPOKE JOINERY LTD,00104456
South Ribble Council,http://statistics.data.gov.uk/doc/local-authority/30UN,Property Services,Rep & Maint Premises,2020,Change two locks at Avacab,22/01/2016,0000395236,49.50,Revenue,COOPER BESPOKE JOINERY LTD,00104456
South Ribble Council,http://statistics.data.gov.uk/doc/local-authority/30UN,Property Services,Rep & Maint Premises,2024,Re-hang door in pavilion no 4 Worden Park,22/01/2016,0000395236,33.00,Revenue,COOPER BESPOKE JOINERY LTD,00104456
South Ribble Council,http://statistics.data.gov.uk/doc/local-authority/30UN,Property Services,Rep & Maint Premises,2024,Install new shin rail post Leyland Leisure Centre,22/01/2016,0000395236,156.75,Revenue,COOPER BESPOKE JOINERY LTD,00104456
South Ribble Council,http://statistics.data.gov.uk/doc/local-authority/30UN,Property Services,Rep & Maint Premises,2020,Supply 4 shelves for Civic Centre,22/01/2016,0000395236,24.75,Revenue,COOPER BESPOKE JOINERY LTD,00104456
South Ribble Council,http://statistics.data.gov.uk/doc/local-authority/30UN,Property Services,Rep & Maint Premises,2020,"Make repairs to doors 1,2,3 & 5 craft units also blacksmiths and glass man",22/01/2016,0000395236,660.00,Revenue,COOPER BESPOKE JOINERY LTD,00104456
South Ribble Council,http://statistics.data.gov.uk/doc/local-authority/30UN,Property Services,Rep & Maint Premises,2024,MATERIALS line1,22/01/2016,0000395236,439.50,Revenue,COOPER BESPOKE JOINERY LTD,00104456
South Ribble Council,http://statistics.data.gov.uk/doc/local-authority/30UN,Property Services,Rep & Maint Premises,2020,MATERIALS line 2,22/01/2016,0000395236,42.25,Revenue,COOPER BESPOKE JOINERY LTD,00104456
South Ribble Council,http://statistics.data.gov.uk/doc/local-authority/30UN,Property Services,Rep & Maint Premises,2024,MATERIALS line4,22/01/2016,0000395236,35.00,Revenue,COOPER BESPOKE JOINERY LTD,00104456
South Ribble Council,http://statistics.data.gov.uk/doc/local-authority/30UN,Property Services,Rep & Maint Premises,2020,MATERIALS line5,22/01/2016,0000395236,25.00,Revenue,COOPER BESPOKE JOINERY LTD,00104456
South Ribble Council,http://statistics.data.gov.uk/doc/local-authority/30UN,Property Services,Rep & Maint Premises,2020,MATERIALS line6,22/01/2016,0000395236,321.40,Revenue,COOPER BESPOKE JOINERY LTD,00104456
South Ribble Council,http://statistics.data.gov.uk/doc/local-authority/30UN,Property Services,Rep & Maint Premises,2020,"Please make alterations to the door at the museum, fit a new lock and supply 10 keys in total ",22/01/2016,0000395238,74.25,Revenue,COOPER BESPOKE JOINERY LTD,00104456
South Ribble Council,http://statistics.data.gov.uk/doc/local-authority/30UN,Property Services,Rep & Maint Premises,2020,"Please attend the market, supply materials and labour in order to split the stall 4 into 2 separate units. Build a partition with MDF facia`s. Paint the unit in supplied paint. Black skirtings to either side.
Supply and fit a new push bar to lock to the",22/01/2016,0000395238,795.00,Revenue,COOPER BESPOKE JOINERY LTD,00104456
South Ribble Council,http://statistics.data.gov.uk/doc/local-authority/30UN,Property Services,Rep & Maint Premises,2020,MATERIALS,22/01/2016,0000395238,50.50,Revenue,COOPER BESPOKE JOINERY LTD,00104456
South Ribble Council,http://statistics.data.gov.uk/doc/local-authority/30UN,Property Services,Rep & Maint Premises,2020,MATERIALS,22/01/2016,0000395238,380.00,Revenue,COOPER BESPOKE JOINERY LTD,00104456
South Ribble Council,http://statistics.data.gov.uk/doc/local-authority/30UN,Property Services,Rep & Maint Premises,2020,"Please attend site, ADDRESS REDACTED Bamber Bridge and investigate the problem with the floor",22/01/2016,0000395239,675.75,Revenue,COOPER BESPOKE JOINERY LTD,00104456
South Ribble Council,http://statistics.data.gov.uk/doc/local-authority/30UN,Property Services,Rep & Maint Premises,2020,MATERIALS,22/01/2016,0000395239,310.50,Revenue,COOPER BESPOKE JOINERY LTD,00104456
South Ribble Council,http://statistics.data.gov.uk/doc/local-authority/30UN,Property Services,Rep & Maint Premises,2020,Pick up a sign from Property Services and fix to the wall at ADDRESS REDACTED,27/01/2016,0000395271,49.50,Revenue,COOPER BESPOKE JOINERY LTD,00104456
South Ribble Council,http://statistics.data.gov.uk/doc/local-authority/30UN,Property Services,Rep & Maint Premises,2020,Make a big frame for the map for the top floor landing - Civic Centre,27/01/2016,0000395271,156.75,Revenue,COOPER BESPOKE JOINERY LTD,00104456
South Ribble Council,http://statistics.data.gov.uk/doc/local-authority/30UN,Property Services,Rep & Maint Premises,2020,Please attend site ADDRESS REDACTED change the two locks on the front door 4 key required.,27/01/2016,0000395271,140.25,Revenue,COOPER BESPOKE JOINERY LTD,00104456
South Ribble Council,http://statistics.data.gov.uk/doc/local-authority/30UN,Property Services,Rep & Maint Premises,2020,materials line 2,27/01/2016,0000395271,87.50,Revenue,COOPER BESPOKE JOINERY LTD,00104456
South Ribble Council,http://statistics.data.gov.uk/doc/local-authority/30UN,Property Services,Rep & Maint Premises,2020,materials line 3,27/01/2016,0000395271,290.00,Revenue,COOPER BESPOKE JOINERY LTD,00104456
South Ribble Council,http://statistics.data.gov.uk/doc/local-authority/30UN,Planning,Microfilming,4151,Maint Contract - CO Type Contract SL1000 Digital Microfilm Scanner - Serial Number SL81001075,08/01/2016,0000389004,395.00,Revenue,Covergold Limited,131096
South Ribble Council,http://statistics.data.gov.uk/doc/local-authority/30UN,Housing,Cap Grant- Improve Grants,C570,DFG works to bathroom at ADDRESS REDACTED,13/01/2016,0000394294,"5,364.00",Revenue,Croston Plumbing & Heating Ltd,131545
South Ribble Council,http://statistics.data.gov.uk/doc/local-authority/30UN,Neighbourhood Admin & Support,Vehicle Running Costs,3132,"17,000 LITRES DISEL (@ 84.50 pence per litre)",08/01/2016,0000394348,"14,365.00",Revenue,CROWN OIL,00065906
South Ribble Council,http://statistics.data.gov.uk/doc/local-authority/30UN,Neighbourhood Admin & Support,Vehicle Running Costs,3132,"15,000 LITRES DIESEL (@81.10 PENCE PER LITRE)",08/01/2016,0000394349,"12,165.00",Revenue,CROWN OIL,00065906
South Ribble Council,http://statistics.data.gov.uk/doc/local-authority/30UN,Area 2 - Waste Transport/Eastern & Central Teams,External Contractors Charges,4570,SPEC REPAIR - JFC5333 - PK08UXS - PD *iINSURANCE EXCESS*,22/01/2016,0000394903,250.00,Revenue,DAVAND LTD (trading as Longton Coachcraft),131579
South Ribble Council,http://statistics.data.gov.uk/doc/local-authority/30UN,Area 2 - Waste Transport/Eastern & Central Teams,External Contractors Charges,4570,VAT,22/01/2016,0000394903,0.00,Revenue,DAVAND LTD (trading as Longton Coachcraft),131579
South Ribble Council,http://statistics.data.gov.uk/doc/local-authority/30UN,Area 2 - Waste Transport/Eastern & Central Teams,External Contractors Charges,4570,SPEC REPAIR - JFC6160 - MX04YNL - PD,22/01/2016,0000394904,250.00,Revenue,DAVAND LTD (trading as Longton Coachcraft),131579
South Ribble Council,http://statistics.data.gov.uk/doc/local-authority/30UN,Area 2 - Waste Transport/Eastern & Central Teams,Cap Vehicles,C440,PURCHASE OF 6 REFUSE VEHICLES - AS PER SPECIFICATION,13/01/2016,0000389383,"2,914.00",Revenue,DENNIS EAGLE LTD,00019774
South Ribble Council,http://statistics.data.gov.uk/doc/local-authority/30UN,Regeneration,Capital Expenditure,C234,1no. 760x1374 x2 Brushed Stainless Steel Plate with corners chamfered/rounded slightly and 5mm dia,20/01/2016,0000394666,300.00,Revenue,DP STRUCTURES LTD,00120485
South Ribble Council,http://statistics.data.gov.uk/doc/local-authority/30UN,Information Services,Peripherals,4246,Fujitsu Fi-5750C Maintenance for period 01/02/16 - 31/01/17,08/01/2016,0000394370,"1,995.00",Revenue,E FILE UK LTD,00110958
South Ribble Council,http://statistics.data.gov.uk/doc/local-authority/30UN,Regeneration,Other Misc,4851,Groceries for Christmas Events 2015,13/01/2016,0000389201,166.97,Revenue,E H Booth & Co,131675
South Ribble Council,http://statistics.data.gov.uk/doc/local-authority/30UN,Regeneration,Other Misc,4851,,13/01/2016,0000389201,88.78,Revenue,E H Booth & Co,131675
South Ribble Council,http://statistics.data.gov.uk/doc/local-authority/30UN,Information Services,Peripherals,4260,,13/01/2016,0000394387,"2,072.93",Revenue,EE Ltd,131653
South Ribble Council,http://statistics.data.gov.uk/doc/local-authority/30UN,Information Services,Peripherals,4260,signal box,20/01/2016,0000394881,375.00,Revenue,EE Ltd,131653
South Ribble Council,http://statistics.data.gov.uk/doc/local-authority/30UN,Information Services,Peripherals,4248,Esri Maintenance Renewal for period 06/01/16 - 05/01/17 as per quote ref:  027885,15/01/2016,0000394833,"11,442.00",Revenue,ESRI (UK) LTD,00053565
South Ribble Council,http://statistics.data.gov.uk/doc/local-authority/30UN,Information Services,Capital Expenditure,C234,"Dell PowerVault MD1200 Direct Attached Storage Array 3195.00, plus delivery 20.00, as per quote",13/01/2016,0000394400,"3,215.00",Revenue,ETB TECHNOLOGIES LTD,130192
South Ribble Council,http://statistics.data.gov.uk/doc/local-authority/30UN,Information Services,Capital Expenditure,C234,"New Dell PowerEdge R630 1U Rackmount Server plus delivery , as per quote",13/01/2016,0000394401,"2,470.00",Revenue,ETB TECHNOLOGIES LTD,130192
South Ribble Council,http://statistics.data.gov.uk/doc/local-authority/30UN,Property Services,Rep & Maint Premises,2020,Please carry out work to fabricate and install a new metal staircase to the rear of Leyland Market,20/01/2016,0000394873,"1,780.00",Revenue,G S F (Lancs) Ltd,131474
South Ribble Council,http://statistics.data.gov.uk/doc/local-authority/30UN,Regeneration,Other Misc,4851,Consultancy,29/01/2016,0000395292,"1,333.00",Revenue,Georgina Pickering,131444
South Ribble Council,http://statistics.data.gov.uk/doc/local-authority/30UN,Area 2 - Waste Transport/Eastern & Central Teams,Cap Vehicles,C440,SUPPLY:  MEYER CROSSFIRE SPREADER ON TWIN AXLE TRAILER 1200 LTR,06/01/2016,0000389202,"8,260.00",Revenue,GIBSONS GARDEN MACHINERY LTD,00059051
South Ribble Council,http://statistics.data.gov.uk/doc/local-authority/30UN,Housing,Contributions,4730,Repairs and replacements for Winter Warmth Scheme,29/01/2016,0000395253,"1,852.50",Revenue,GOS Heating Ltd,131387
South Ribble Council,http://statistics.data.gov.uk/doc/local-authority/30UN,Housing,Contributions,4730,Repairs and replacements for Winter Warmth Scheme,29/01/2016,0000395262,"2,188.69",Revenue,GOS Heating Ltd,131387
South Ribble Council,http://statistics.data.gov.uk/doc/local-authority/30UN,Shared Financial Services,Professional Fees,4512,Certification of grant claims and returns for 2015/16,27/01/2016,0000389045,"9,290.00",Revenue,Grant Thornton UK LLP,130718
South Ribble Council,http://statistics.data.gov.uk/doc/local-authority/30UN,Neighbourhood Admin & Support,Clothing- Uniforms & Laundry,4410,BLUE JACKETS - large - SRC.TRA122,22/01/2016,0000395175,167.80,Revenue,GUARDSMAN LTD,130321
South Ribble Council,http://statistics.data.gov.uk/doc/local-authority/30UN,Neighbourhood Admin & Support,Clothing- Uniforms & Laundry,4410, BLUE JACKETS - extra large - SRC.TRA122,22/01/2016,0000395175,83.90,Revenue,GUARDSMAN LTD,130321
South Ribble Council,http://statistics.data.gov.uk/doc/local-authority/30UN,Area 2 - Waste Transport/Eastern & Central Teams,Materials General,4040,ASSORTED FILTERS (IMPREST STOCK),20/01/2016,0000394850,251.14,Revenue,H & J SERVICES LTD,00114446
South Ribble Council,http://statistics.data.gov.uk/doc/local-authority/30UN,Democratic Services,Other Misc,4970,HALAROSE WORKSHOP AND USER GROUP MEETING ON 20-22 JANUARY AT SOLIHULL,20/01/2016,0000394852,"1,335.00",Revenue,HALAROSE LTD,00024358
South Ribble Council,http://statistics.data.gov.uk/doc/local-authority/30UN,Information Services,Training Expense-Course Fees,1420,"Winter Workshop and UGM, 21st and 22nd January 2016 - delegate",20/01/2016,0000395161,445.00,Revenue,HALAROSE LTD,00024358
South Ribble Council,http://statistics.data.gov.uk/doc/local-authority/30UN,Information Services,Capital Expenditure,C234,210-ACPH Latitude 12 Rugged Extreme (7204),06/01/2016,0000389381,"1,871.76",Revenue,INSIGHT UK,00120744
South Ribble Council,http://statistics.data.gov.uk/doc/local-authority/30UN,Information Services,Capital Expenditure,C234,340-AKVN Kit - Rubber Handle for Latitude 12 Rugged Extreme,06/01/2016,0000389381,122.39,Revenue,INSIGHT UK,00120744
South Ribble Council,http://statistics.data.gov.uk/doc/local-authority/30UN,Information Services,Peripherals,4243,Renewal of CoreCAL Licences as per quote ref. 76074631,06/01/2016,0000389442,"7,235.81",Revenue,INSIGHT UK,00120744
South Ribble Council,http://statistics.data.gov.uk/doc/local-authority/30UN,Information Services,Peripherals,4244,Select Plus Purchase - Project 2016 SNGL MVL,22/01/2016,0000395177,620.96,Revenue,INSIGHT UK,00120744
South Ribble Council,http://statistics.data.gov.uk/doc/local-authority/30UN,Information Services,Peripherals,4244,Select Plus Purchase - VisioStd 2016 SNGL MVL,22/01/2016,0000395177,137.43,Revenue,INSIGHT UK,00120744
South Ribble Council,http://statistics.data.gov.uk/doc/local-authority/30UN,Information Services,Peripherals,4243,"Red Hat Enterprise Linux Server - 1 year renewal for period 21/01/16 - 20/01/17, quote ref: 2015-5-6350",20/01/2016,0000395178,934.42,Revenue,INSIGHT UK,00120744
South Ribble Council,http://statistics.data.gov.uk/doc/local-authority/30UN,Revenues Plus,Professional Fees,4520,annual subscription,22/01/2016,0000394449,"1,050.00",Revenue,INST OF REVENUES RATING & VALUATION,00024950
South Ribble Council,http://statistics.data.gov.uk/doc/local-authority/30UN,Development Enterprise & Comm Mgnt,Other Misc,4851,Hire of stage and technicians for Leyland Christmas festival on Saturday 28th November 2015,13/01/2016,0000389361,750.00,Revenue,INTRAK,00048240
South Ribble Council,http://statistics.data.gov.uk/doc/local-authority/30UN,Revenues Plus,Professional Fees,4525,Q1 CT Bailiff Fees (b),15/01/2016,0000394848,345.00,Revenue,JACOBS,00049252
South Ribble Council,http://statistics.data.gov.uk/doc/local-authority/30UN,Revenues Plus,Professional Fees,4525,vat on fees,15/01/2016,0000394848,0.00,Revenue,JACOBS,00049252
South Ribble Council,http://statistics.data.gov.uk/doc/local-authority/30UN,Property Services,Rep & Maint Premises,2020,2015/2016 Annual Maintenance of the Trend BMS HVAC - PPM service visits at Civic Centre,06/01/2016,0000389380,380.00,Revenue,JBC CONTROL SYSTEM,130816
South Ribble Council,http://statistics.data.gov.uk/doc/local-authority/30UN,Neighbourhood Admin & Support,Materials General,4040, SCJ BITUMEN COLD JOINT SEALER - SpeCH016,08/01/2016,0000394262,109.56,Revenue,JEWSON LTD,130263
South Ribble Council,http://statistics.data.gov.uk/doc/local-authority/30UN,Neighbourhood Admin & Support,Materials General,4040,PERMANENT POTHOLE REPAIR - TUB - SpeCH015,08/01/2016,0000394262,339.60,Revenue,JEWSON LTD,130263
South Ribble Council,http://statistics.data.gov.uk/doc/local-authority/30UN,Planning,Other Misc,4851,Planning adverts in the Lancashire Evening Post as and when requested up to the end of March 2016,08/01/2016,0000389448,556.47,Revenue,JOHNSTON PUBLISHING (NORTH WEST),00011345
South Ribble Council,http://statistics.data.gov.uk/doc/local-authority/30UN,Planning,Other Misc,4851,Planning adverts in the Lancashire Evening Post as and when requested up to the end of March 2016,08/01/2016,0000389449,432.81,Revenue,JOHNSTON PUBLISHING (NORTH WEST),00011345
South Ribble Council,http://statistics.data.gov.uk/doc/local-authority/30UN,Area 1 - Penwortham Western Parishes,Other Misc,4851,PUBLIC NOTICES - ADVERT REF NUMBER: WSH0176248 OF 22.12.15,08/01/2016,0000389451,391.59,Revenue,JOHNSTON PUBLISHING (NORTH WEST),00011345
South Ribble Council,http://statistics.data.gov.uk/doc/local-authority/30UN,Planning,Other Misc,4851,Planning adverts in the Lancashire Evening Post as and when requested up to the end of March 2016,20/01/2016,0000394450,551.25,Revenue,JOHNSTON PUBLISHING (NORTH WEST),00011345
South Ribble Council,http://statistics.data.gov.uk/doc/local-authority/30UN,Planning,Other Misc,4851,Planning adverts in the Lancashire Evening Post as and when requested up to the end of March 2016,22/01/2016,0000395000,551.25,Revenue,JOHNSTON PUBLISHING (NORTH WEST),00011345
South Ribble Council,http://statistics.data.gov.uk/doc/local-authority/30UN,Planning,Other Misc,4851,Planning adverts in the Lancashire Evening Post as and when requested up to the end of March 2016,22/01/2016,0000395021,708.75,Revenue,JOHNSTON PUBLISHING (NORTH WEST),00011345
South Ribble Council,http://statistics.data.gov.uk/doc/local-authority/30UN,Planning,Other Misc,4851,Planning adverts in the Lancashire Evening Post as and when requested up to the end of March 2016,22/01/2016,0000395036,682.50,Revenue,JOHNSTON PUBLISHING (NORTH WEST),00011345
South Ribble Council,http://statistics.data.gov.uk/doc/local-authority/30UN,Planning,Client Dept Charges Contractin,4581,Planning adverts in the Lancashire Evening post as and when requested up to end of March 2016,29/01/2016,0000395320,551.25,Revenue,JOHNSTON PUBLISHING (NORTH WEST),00011345
South Ribble Council,http://statistics.data.gov.uk/doc/local-authority/30UN,Planning,Client Dept Charges Contractin,4581,Planning adverts in the Lancashire Evening post as and when requested up to end of March 2016,29/01/2016,0000395321,735.00,Revenue,JOHNSTON PUBLISHING (NORTH WEST),00011345
South Ribble Council,http://statistics.data.gov.uk/doc/local-authority/30UN,Planning,Other Misc,4851,Planning adverts in the Lancashire Evening Post as and when requested up to the end of March 2016,29/01/2016,0000395322,525.00,Revenue,JOHNSTON PUBLISHING (NORTH WEST),00011345
South Ribble Council,http://statistics.data.gov.uk/doc/local-authority/30UN,Area 2 - Waste Transport/Eastern & Central Teams,Materials General,4040,SUCTION BOX CARRIAGE FRAME & PARTS RV14 DTZ JFC 6118,22/01/2016,0000394838,653.78,Revenue,JOHNSTON SWEEPERS LTD,00058926
South Ribble Council,http://statistics.data.gov.uk/doc/local-authority/30UN,Regeneration,Capital Expenditure,C234,Instillation of feeder pillars,22/01/2016,0000395153,285.86,Revenue,Jones lighting ltdMain,131657
South Ribble Council,http://statistics.data.gov.uk/doc/local-authority/30UN,Area 1 - Penwortham Western Parishes,External Contractors Charges,4570,TRAFFIC MANAGEMENT FOR GRASS CUTTING AND CHANNEL SWEEPING AT SAMLESBURY ,27/01/2016,0000395228,"2,499.75",Revenue,KAYS TRAFFIC MANAGEMENT LTD,00072342
South Ribble Council,http://statistics.data.gov.uk/doc/local-authority/30UN,Area 1 - Penwortham Western Parishes,External Contractors Charges,4570,TRAFFIC MANAGEMENT FOR GRASS CUTTING AND CHANNEL SWEEPING - SAMLESBURY ,27/01/2016,0000395228,833.25,Revenue,KAYS TRAFFIC MANAGEMENT LTD,00072342
South Ribble Council,http://statistics.data.gov.uk/doc/local-authority/30UN,Homelessness,Contributions,4730,"KEY Housing advice 16-25 year olds",08/01/2016,0000394353,"5,000.00",Revenue,KEY UNLOCKING FUTURES LTD,00098601
South Ribble Council,http://statistics.data.gov.uk/doc/local-authority/30UN,Area 2 - Waste Transport/Eastern & Central Teams,Waste Disposal Charges,5112,October 2015 - Incineration of Clinical Waste,13/01/2016,0000394319,624.91,Revenue,LANCASHIRE TEACHING FT,00120715
South Ribble Council,http://statistics.data.gov.uk/doc/local-authority/30UN,Regeneration,Sports Dev Expenses,4894,Multi skills awards,13/01/2016,0000394376,280.00,Revenue,LANCS COUNTY COUNCIL,00041645
South Ribble Council,http://statistics.data.gov.uk/doc/local-authority/30UN,Regeneration,Sports Dev Expenses,4894,Multi skills awards,13/01/2016,0000394377,280.00,Revenue,LANCS COUNTY COUNCIL,00041645
South Ribble Council,http://statistics.data.gov.uk/doc/local-authority/30UN,Planning,Professional Fees,4510,Agricultural Planning Consultations,13/01/2016,0000394432,550.00,Revenue,LANCS COUNTY COUNCIL,00041645
South Ribble Council,http://statistics.data.gov.uk/doc/local-authority/30UN,Area 2 - Waste Transport/Eastern & Central Teams,Contractors Charges 5,5412,"Quarter 2 Disposal Fee, Landfill tax & 5% admin fee",22/01/2016,0000394876,"52,387.19",Revenue,LANCS COUNTY COUNCIL,00041645
South Ribble Council,http://statistics.data.gov.uk/doc/local-authority/30UN,Planning,Professional Fees,4510,"Service level agreement for archaeological advice, 2015 - 2016",20/01/2016,0000395167,"1,250.00",Revenue,LANCS COUNTY COUNCIL,00041645
South Ribble Council,http://statistics.data.gov.uk/doc/local-authority/30UN,Regeneration,Sports Dev Expenses,4894,Multi skills awards,29/01/2016,0000395180,280.00,Revenue,LANCS COUNTY COUNCIL,00041645
South Ribble Council,http://statistics.data.gov.uk/doc/local-authority/30UN,Housing,Cap Grant- Improve Grants,C570,Supply and installation of Closomat(reconditioned)  at St Mary�s Priory.,29/01/2016,0000395263,965.00,Revenue,LANCS COUNTY COUNCIL,00041645
South Ribble Council,http://statistics.data.gov.uk/doc/local-authority/30UN,ZSUSPShared Financial Services,Contributions,4730,Payment of CIL monies as agreed.,29/01/2016,0000395565,"80,411.76",Revenue,LANCS COUNTY COUNCIL,00041645
South Ribble Council,http://statistics.data.gov.uk/doc/local-authority/30UN,Neighbourhood Admin & Support,Materials General,4040,NX58 FJZ - 6079JFC - CAB LOCK SWITCH,29/01/2016,0000395286,484.48,Revenue,LANCS DAF,00026424
South Ribble Council,http://statistics.data.gov.uk/doc/local-authority/30UN,Area 1 - Penwortham Western Parishes,Other Misc,48GR,SRBC Boundary Gateway Sign BUCKSHAW VILLAGE,13/01/2016,0000389378,206.50,Revenue,LCC SIGN SHOP,00027096
South Ribble Council,http://statistics.data.gov.uk/doc/local-authority/30UN,Area 1 - Penwortham Western Parishes,Other Misc,48GR,PENWORTHAM,13/01/2016,0000389378,206.50,Revenue,LCC SIGN SHOP,00027096
South Ribble Council,http://statistics.data.gov.uk/doc/local-authority/30UN,Area 1 - Penwortham Western Parishes,Other Misc,48GR,WALTON LE DALE,13/01/2016,0000389378,206.50,Revenue,LCC SIGN SHOP,00027096
South Ribble Council,http://statistics.data.gov.uk/doc/local-authority/30UN,Area 1 - Penwortham Western Parishes,Other Misc,48GR,GALVANISED STEEL POSTS 89 x 4500mm,13/01/2016,0000389378,361.74,Revenue,LCC SIGN SHOP,00027096
South Ribble Council,http://statistics.data.gov.uk/doc/local-authority/30UN,Area 1 - Penwortham Western Parishes,Other Misc,48GR,DELIVERY & INSTALLATION,13/01/2016,0000389378,336.72,Revenue,LCC SIGN SHOP,00027096
South Ribble Council,http://statistics.data.gov.uk/doc/local-authority/30UN,Area 3 - Parks/Leyland East West,Grounds Maint Cntrctrs Chgs,4657,TARIFF BOARDS 750 x 1485MM,06/01/2016,0000389432,890.40,Revenue,LCC SIGN SHOP,00027096
South Ribble Council,http://statistics.data.gov.uk/doc/local-authority/30UN,Area 3 - Parks/Leyland East West,Grounds Maint Cntrctrs Chgs,4657,COACH PARKING BOARDS 750 x 1215mm,06/01/2016,0000389432,200.00,Revenue,LCC SIGN SHOP,00027096
South Ribble Council,http://statistics.data.gov.uk/doc/local-authority/30UN,Area 3 - Parks/Leyland East West,Grounds Maint Cntrctrs Chgs,4657,POSTS INC FIXINGS 60 x 3000mm,06/01/2016,0000389432,621.44,Revenue,LCC SIGN SHOP,00027096
South Ribble Council,http://statistics.data.gov.uk/doc/local-authority/30UN,HR & Communications,Balance Sheet,0030,HOME TECHNOLOGY SCHEME (PHONE ONLY),15/01/2016,0000394834,502.60,Revenue,LETS CONNECT,131361
South Ribble Council,http://statistics.data.gov.uk/doc/local-authority/30UN,HR & Communications,Balance Sheet,0030,HOME TECHNOLOGY SCHEME,29/01/2016,0000394835,"7,795.20",Revenue,LETS CONNECT,131361
South Ribble Council,http://statistics.data.gov.uk/doc/local-authority/30UN,Information Services,Publications,4142,ryde on rating,06/01/2016,0000389391,370.45,Revenue,LEXISNEXIS BUTTERWORTHS,00037138
South Ribble Council,http://statistics.data.gov.uk/doc/local-authority/30UN,Area 3 - Parks/Leyland East West,Grounds Maint Cntrctrs Chgs,4657,20 TON TOP SOIL,15/01/2016,0000394659,413.57,Revenue,M C & M A STEWART HAULAGE LTD,00035567
South Ribble Council,http://statistics.data.gov.uk/doc/local-authority/30UN,Housing,Cap Grant- Improve Grants,C570,DFG works to bathroom,22/01/2016,0000395213,"1,470.00",Revenue,MAHONEY CONTRACTORS LTD,131271
South Ribble Council,http://statistics.data.gov.uk/doc/local-authority/30UN,Property Services,Rep & Maint Premises,2020,2015/2016 contract for gutter inspection at Moss Side Depot,22/01/2016,0000394885,363.00,Revenue,MAINCOAT LTD,00099244
South Ribble Council,http://statistics.data.gov.uk/doc/local-authority/30UN,Property Services,Rep & Maint Premises,2020,2015/2016 contract for gutter inspection at Leyland Market,22/01/2016,0000394885,215.00,Revenue,MAINCOAT LTD,00099244
South Ribble Council,http://statistics.data.gov.uk/doc/local-authority/30UN,Property Services,Rep & Maint Premises,2020,2015/2016 contract for gutter inspection at Bamber Bridge Community Centre,22/01/2016,0000394885,178.00,Revenue,MAINCOAT LTD,00099244
South Ribble Council,http://statistics.data.gov.uk/doc/local-authority/30UN,Property Services,Rep & Maint Premises,2020,2015/2016 contract for gutter inspection at Higher Walton Community Centre,22/01/2016,0000394885,178.00,Revenue,MAINCOAT LTD,00099244
South Ribble Council,http://statistics.data.gov.uk/doc/local-authority/30UN,Property Services,Rep & Maint Premises,2020,2015/2016 contract for gutter inspection at Moss Side Community Centre,22/01/2016,0000394885,178.00,Revenue,MAINCOAT LTD,00099244
South Ribble Council,http://statistics.data.gov.uk/doc/local-authority/30UN,Property Services,Rep & Maint Premises,2020,2015/2016 contract for gutter inspection at Leyland Museum,22/01/2016,0000394885,178.00,Revenue,MAINCOAT LTD,00099244
South Ribble Council,http://statistics.data.gov.uk/doc/local-authority/30UN,Property Services,Rep & Maint Premises,2020,2015/2016 contract for gutter inspection at Longton Brickcroft,22/01/2016,0000394885,215.00,Revenue,MAINCOAT LTD,00099244
South Ribble Council,http://statistics.data.gov.uk/doc/local-authority/30UN,Property Services,Rep & Maint Premises,2020,2015/2016 contract for gutter inspection at Leyland Leisure Centre,22/01/2016,0000394885,363.00,Revenue,MAINCOAT LTD,00099244
South Ribble Council,http://statistics.data.gov.uk/doc/local-authority/30UN,Property Services,Rep & Maint Premises,2020,2015/2016 contract for gutter inspection at Bamber Bridge Leisure Centre,22/01/2016,0000394885,363.00,Revenue,MAINCOAT LTD,00099244
South Ribble Council,http://statistics.data.gov.uk/doc/local-authority/30UN,Property Services,Rep & Maint Premises,2020,2015/2016 contract for gutter inspection at Penwortham Leisure Centre,22/01/2016,0000394885,363.00,Revenue,MAINCOAT LTD,00099244
South Ribble Council,http://statistics.data.gov.uk/doc/local-authority/30UN,Property Services,Rep & Maint Premises,2020,"2015/2016 contract for gutter inspection at the Tennis Centre, Bamber Bridge",22/01/2016,0000394885,363.00,Revenue,MAINCOAT LTD,00099244
South Ribble Council,http://statistics.data.gov.uk/doc/local-authority/30UN,Property Services,Rep & Maint Premises,2020,2015/2016 contract for gutter inspection at the Civic Centre,22/01/2016,0000394885,178.00,Revenue,MAINCOAT LTD,00099244
South Ribble Council,http://statistics.data.gov.uk/doc/local-authority/30UN,Property Services,Rep & Maint Premises,2020,2015/2016 contract for gutter inspection at Carr Street Community Centre,22/01/2016,0000394885,178.00,Revenue,MAINCOAT LTD,00099244
South Ribble Council,http://statistics.data.gov.uk/doc/local-authority/30UN,Property Services,Rep & Maint Premises,2020,2015/2016 contract for gutter inspection at Holland House Farm,22/01/2016,0000394885,141.00,Revenue,MAINCOAT LTD,00099244
South Ribble Council,http://statistics.data.gov.uk/doc/local-authority/30UN,Property Services,Rep & Maint Premises,2020,"2015/2016 contract for gutter inspection at crossroads toilets, playground toilets, withy grove toilets",22/01/2016,0000394885,460.00,Revenue,MAINCOAT LTD,00099244
South Ribble Council,http://statistics.data.gov.uk/doc/local-authority/30UN,Property Services,Rep & Maint Premises,2020,2015/2016 contract for gutter inspection at Gregson Lane Sports Pavilion,22/01/2016,0000394885,141.50,Revenue,MAINCOAT LTD,00099244
South Ribble Council,http://statistics.data.gov.uk/doc/local-authority/30UN,Property Services,Rep & Maint Premises,2020,2015/2016 contract for gutter inspection at Hern Ave & St Cuthbert`s pavilions,22/01/2016,0000394885,141.50,Revenue,MAINCOAT LTD,00099244
South Ribble Council,http://statistics.data.gov.uk/doc/local-authority/30UN,Property Services,Rep & Maint Premises,2020,2015/2016 contract for gutter inspection at Withy Grove & Holme Pavilions,22/01/2016,0000394885,141.50,Revenue,MAINCOAT LTD,00099244
South Ribble Council,http://statistics.data.gov.uk/doc/local-authority/30UN,Property Services,Rep & Maint Premises,2020,2015/2016 contract for gutter inspection at Hurst Grange & Kingsfold pavilions,22/01/2016,0000394885,141.50,Revenue,MAINCOAT LTD,00099244
South Ribble Council,http://statistics.data.gov.uk/doc/local-authority/30UN,Property Services,Rep & Maint Premises,2020,2015/2016 contract for gutter inspection at Longton Pavilion,22/01/2016,0000394885,141.50,Revenue,MAINCOAT LTD,00099244
South Ribble Council,http://statistics.data.gov.uk/doc/local-authority/30UN,Property Services,Rep & Maint Premises,2020,2015/2016 contract for gutter inspection at Hutton Pavilion,22/01/2016,0000394885,141.50,Revenue,MAINCOAT LTD,00099244
South Ribble Council,http://statistics.data.gov.uk/doc/local-authority/30UN,Property Services,Rep & Maint Premises,2020,2015/2016 contract for gutter inspection at Much Hoole pavilion,22/01/2016,0000394885,141.50,Revenue,MAINCOAT LTD,00099244
South Ribble Council,http://statistics.data.gov.uk/doc/local-authority/30UN,Property Services,Rep & Maint Premises,2020,2015/2016 contract for gutter inspection at Worden park pavilions,22/01/2016,0000394885,141.50,Revenue,MAINCOAT LTD,00099244
South Ribble Council,http://statistics.data.gov.uk/doc/local-authority/30UN,Property Services,Rep & Maint Premises,2020,2015/2016 contract for gutter inspection at Moss Side Pavilion,22/01/2016,0000394885,141.50,Revenue,MAINCOAT LTD,00099244
South Ribble Council,http://statistics.data.gov.uk/doc/local-authority/30UN,Property Services,Rep & Maint Premises,2020,2015/2016 contract for gutter inspection at Penwortham Holme,22/01/2016,0000394885,141.50,Revenue,MAINCOAT LTD,00099244
South Ribble Council,http://statistics.data.gov.uk/doc/local-authority/30UN,Property Services,Rep & Maint Premises,2020,"2015/2016 contract for gutter inspection at Worden arts centre, coffee shop, derby wing (offices)",22/01/2016,0000394885,437.00,Revenue,MAINCOAT LTD,00099244
South Ribble Council,http://statistics.data.gov.uk/doc/local-authority/30UN,Property Services,Rep & Maint Premises,2020,2015/2016 contract for hard standing inspection at Moss Side Depot,22/01/2016,0000394885,13.50,Revenue,MAINCOAT LTD,00099244
South Ribble Council,http://statistics.data.gov.uk/doc/local-authority/30UN,Property Services,Rep & Maint Premises,2020,2015/2016 contract for hard standing inspection at Leyland market,22/01/2016,0000394885,13.50,Revenue,MAINCOAT LTD,00099244
South Ribble Council,http://statistics.data.gov.uk/doc/local-authority/30UN,Property Services,Rep & Maint Premises,2020,2015/2016 contract for hard standing inspection at Bamber Bridge Community Centre,22/01/2016,0000394885,13.50,Revenue,MAINCOAT LTD,00099244
South Ribble Council,http://statistics.data.gov.uk/doc/local-authority/30UN,Property Services,Rep & Maint Premises,2020,2015/2016 contract for hard standing inspection at Higher Walton Community Centre,22/01/2016,0000394885,13.50,Revenue,MAINCOAT LTD,00099244
South Ribble Council,http://statistics.data.gov.uk/doc/local-authority/30UN,Property Services,Rep & Maint Premises,2020,2015/2016 contract for hard standing inspection at Moss Side Community Centre,22/01/2016,0000394885,13.50,Revenue,MAINCOAT LTD,00099244
South Ribble Council,http://statistics.data.gov.uk/doc/local-authority/30UN,Property Services,Rep & Maint Premises,2020,2015/2016 contract for hard standing inspection at Leyland Museum,22/01/2016,0000394885,13.50,Revenue,MAINCOAT LTD,00099244
South Ribble Council,http://statistics.data.gov.uk/doc/local-authority/30UN,Property Services,Rep & Maint Premises,2020,2015/2016 contract for hard standing inspection at Longton Brick croft,22/01/2016,0000394885,13.50,Revenue,MAINCOAT LTD,00099244
South Ribble Council,http://statistics.data.gov.uk/doc/local-authority/30UN,Property Services,Rep & Maint Premises,2020,2015/2016 contract for hard standing inspection at Leyland Leisure Centre,22/01/2016,0000394885,13.50,Revenue,MAINCOAT LTD,00099244
South Ribble Council,http://statistics.data.gov.uk/doc/local-authority/30UN,Property Services,Rep & Maint Premises,2020,2015/2016 contract for hard standing inspection at Bamber Bridge Leisure Centre,22/01/2016,0000394885,13.50,Revenue,MAINCOAT LTD,00099244
South Ribble Council,http://statistics.data.gov.uk/doc/local-authority/30UN,Property Services,Rep & Maint Premises,2020,2015/2016 contract for hard standing inspection at Penwortham Leisure Centre,22/01/2016,0000394885,13.50,Revenue,MAINCOAT LTD,00099244
South Ribble Council,http://statistics.data.gov.uk/doc/local-authority/30UN,Property Services,Rep & Maint Premises,2020,"2015/2016 contract for hard standing inspection at the Tennis Centre, Bamber Bridge",22/01/2016,0000394885,13.50,Revenue,MAINCOAT LTD,00099244
South Ribble Council,http://statistics.data.gov.uk/doc/local-authority/30UN,Property Services,Rep & Maint Premises,2020,"2015/2016 contract for hard standing inspection at the Civic Centre, Leyland",22/01/2016,0000394885,13.50,Revenue,MAINCOAT LTD,00099244
South Ribble Council,http://statistics.data.gov.uk/doc/local-authority/30UN,Property Services,Rep & Maint Premises,2020,2015/2016 contract for hard standing inspection at Carr Street Community Centre,22/01/2016,0000394885,13.50,Revenue,MAINCOAT LTD,00099244
South Ribble Council,http://statistics.data.gov.uk/doc/local-authority/30UN,Property Services,Rep & Maint Premises,2020,2015/2016 contract for hard standing inspection at Holland House Farm,22/01/2016,0000394885,13.50,Revenue,MAINCOAT LTD,00099244
South Ribble Council,http://statistics.data.gov.uk/doc/local-authority/30UN,Property Services,Rep & Maint Premises,2020,2015/2016 contract for hard standing inspection at Crossroads & playground toilets worden park,22/01/2016,0000394885,40.50,Revenue,MAINCOAT LTD,00099244
South Ribble Council,http://statistics.data.gov.uk/doc/local-authority/30UN,Property Services,Rep & Maint Premises,2020,2015/2016 contract for hard standing inspection at Gregson Lane pavilion,22/01/2016,0000394885,13.50,Revenue,MAINCOAT LTD,00099244
South Ribble Council,http://statistics.data.gov.uk/doc/local-authority/30UN,Property Services,Rep & Maint Premises,2020,2015/2016 contract for hard standing inspection at Hern Avenue & St Cuthbert`s pavilions,22/01/2016,0000394885,13.50,Revenue,MAINCOAT LTD,00099244
South Ribble Council,http://statistics.data.gov.uk/doc/local-authority/30UN,Property Services,Rep & Maint Premises,2020,2015/2016 contract for hard standing inspection at withy grove & Holme pavilions,22/01/2016,0000394885,13.50,Revenue,MAINCOAT LTD,00099244
South Ribble Council,http://statistics.data.gov.uk/doc/local-authority/30UN,Property Services,Rep & Maint Premises,2020,2015/2016 contract for hard standing inspection at Hurst Grange & Kingsfold pavilions,22/01/2016,0000394885,13.50,Revenue,MAINCOAT LTD,00099244
South Ribble Council,http://statistics.data.gov.uk/doc/local-authority/30UN,Property Services,Rep & Maint Premises,2020,2015/2016 contract for hard standing inspection at Longton pavilion,22/01/2016,0000394885,13.50,Revenue,MAINCOAT LTD,00099244
South Ribble Council,http://statistics.data.gov.uk/doc/local-authority/30UN,Property Services,Rep & Maint Premises,2020,2015/2016 contract for hard standing inspection at Hutton Pavilion,22/01/2016,0000394885,13.50,Revenue,MAINCOAT LTD,00099244
South Ribble Council,http://statistics.data.gov.uk/doc/local-authority/30UN,Property Services,Rep & Maint Premises,2020,2015/2016 contract for hard standing inspection at Much Hoole Pavilion,22/01/2016,0000394885,13.50,Revenue,MAINCOAT LTD,00099244
South Ribble Council,http://statistics.data.gov.uk/doc/local-authority/30UN,Property Services,Rep & Maint Premises,2020,2015/2016 contract for hard standing inspection at Worden park pavilions,22/01/2016,0000394885,13.50,Revenue,MAINCOAT LTD,00099244
South Ribble Council,http://statistics.data.gov.uk/doc/local-authority/30UN,Property Services,Rep & Maint Premises,2020,2015/2016 contract for hard standing inspection at Moss Side Pavilion,22/01/2016,0000394885,13.50,Revenue,MAINCOAT LTD,00099244
South Ribble Council,http://statistics.data.gov.uk/doc/local-authority/30UN,Property Services,Rep & Maint Premises,2020,2015/2016 contract for hard standing inspection at Penwortham Holme,22/01/2016,0000394885,13.50,Revenue,MAINCOAT LTD,00099244
South Ribble Council,http://statistics.data.gov.uk/doc/local-authority/30UN,Property Services,Rep & Maint Premises,2020,2015/2016 contract for hard standing inspection at Worden arts centre & associated buildings,22/01/2016,0000394885,81.00,Revenue,MAINCOAT LTD,00099244
South Ribble Council,http://statistics.data.gov.uk/doc/local-authority/30UN,Property Services,Rep & Maint Premises,2020,Annual gutter cleaning/inspections as detailed for 2015/2016 for ADDRESSES REDACTED,27/01/2016,0000395306,108.75,Revenue,MAINCOAT LTD,00099244
South Ribble Council,http://statistics.data.gov.uk/doc/local-authority/30UN,Property Services,Rep & Maint Premises,2020,Annual gutter cleaning/inspections as detailed for 2015/2016 for ADDRESSES REDACTED,27/01/2016,0000395306,108.75,Revenue,MAINCOAT LTD,00099244
South Ribble Council,http://statistics.data.gov.uk/doc/local-authority/30UN,Property Services,Rep & Maint Premises,2020,Annual gutter cleaning/inspections as detailed for 2015/2016 for ADDRESSES REDACTED,27/01/2016,0000395306,108.75,Revenue,MAINCOAT LTD,00099244
South Ribble Council,http://statistics.data.gov.uk/doc/local-authority/30UN,Property Services,Rep & Maint Premises,2020,Annual gutter cleaning/inspections as detailed for 2015/2016 for ADDRESSES REDACTED,27/01/2016,0000395306,108.75,Revenue,MAINCOAT LTD,00099244
South Ribble Council,http://statistics.data.gov.uk/doc/local-authority/30UN,Property Services,Rep & Maint Premises,2020,Annual gutter cleaning/inspections as detailed for 2015/2016 for ADDRESSES REDACTED,27/01/2016,0000395306,107.50,Revenue,MAINCOAT LTD,00099244
South Ribble Council,http://statistics.data.gov.uk/doc/local-authority/30UN,Property Services,Rep & Maint Premises,2020,Annual gutter cleaning/inspections as detailed for 2015/2016 for ADDRESSES REDACTED,27/01/2016,0000395306,107.50,Revenue,MAINCOAT LTD,00099244
South Ribble Council,http://statistics.data.gov.uk/doc/local-authority/30UN,Property Services,Rep & Maint Premises,2020,Annual gutter cleaning/inspections as detailed for 2015/2016 for ADDRESSES REDACTED,27/01/2016,0000395306,70.50,Revenue,MAINCOAT LTD,00099244
South Ribble Council,http://statistics.data.gov.uk/doc/local-authority/30UN,Property Services,Rep & Maint Premises,2020,Annual gutter cleaning/inspections as detailed for 2015/2016 for ADDRESSES REDACTED,27/01/2016,0000395306,70.50,Revenue,MAINCOAT LTD,00099244
South Ribble Council,http://statistics.data.gov.uk/doc/local-authority/30UN,Property Services,Rep & Maint Premises,2020,Annual gutter cleaning/inspections as detailed for 2015/2016 for ADDRESSES REDACTED,27/01/2016,0000395306,107.50,Revenue,MAINCOAT LTD,00099244
South Ribble Council,http://statistics.data.gov.uk/doc/local-authority/30UN,Property Services,Rep & Maint Premises,2020,Annual gutter cleaning/inspections as detailed for 2015/2016 for ADDRESSES REDACTED,27/01/2016,0000395306,181.50,Revenue,MAINCOAT LTD,00099244
South Ribble Council,http://statistics.data.gov.uk/doc/local-authority/30UN,Property Services,Rep & Maint Premises,2020,Annual gutter cleaning/inspections as detailed for 2015/2016 for ADDRESSES REDACTED,27/01/2016,0000395306,107.50,Revenue,MAINCOAT LTD,00099244
South Ribble Council,http://statistics.data.gov.uk/doc/local-authority/30UN,Property Services,Rep & Maint Premises,2020,Annual gutter cleaning/inspections as detailed for 2015/2016 for ADDRESSES REDACTED,27/01/2016,0000395306,107.50,Revenue,MAINCOAT LTD,00099244
South Ribble Council,http://statistics.data.gov.uk/doc/local-authority/30UN,Property Services,Rep & Maint Premises,2020,Annual gutter cleaning/inspections as detailed for 2015/2016 for ADDRESSES REDACTED,27/01/2016,0000395306,70.50,Revenue,MAINCOAT LTD,00099244
South Ribble Council,http://statistics.data.gov.uk/doc/local-authority/30UN,Property Services,Rep & Maint Premises,2020,Annual gutter cleaning/inspections as detailed for 2015/2016 for ADDRESSES REDACTED,27/01/2016,0000395306,144.50,Revenue,MAINCOAT LTD,00099244
South Ribble Council,http://statistics.data.gov.uk/doc/local-authority/30UN,Property Services,Rep & Maint Premises,2020,Annual gutter cleaning/inspections as detailed for 2015/2016 for ADDRESSES REDACTED,27/01/2016,0000395306,70.50,Revenue,MAINCOAT LTD,00099244
South Ribble Council,http://statistics.data.gov.uk/doc/local-authority/30UN,Property Services,Rep & Maint Premises,2020,Annual gutter cleaning/inspections as detailed for 2015/2016 for ADDRESSES REDACTED,27/01/2016,0000395306,70.50,Revenue,MAINCOAT LTD,00099244
South Ribble Council,http://statistics.data.gov.uk/doc/local-authority/30UN,Property Services,Rep & Maint Premises,2020,Annual gutter cleaning/inspections as detailed for 2015/2016 for ADDRESSES REDACTED,27/01/2016,0000395306,70.50,Revenue,MAINCOAT LTD,00099244
South Ribble Council,http://statistics.data.gov.uk/doc/local-authority/30UN,Property Services,Rep & Maint Premises,2020,Annual gutter cleaning/inspections as detailed for 2015/2016 for ADDRESSES REDACTED,27/01/2016,0000395306,107.50,Revenue,MAINCOAT LTD,00099244
South Ribble Council,http://statistics.data.gov.uk/doc/local-authority/30UN,Property Services,Rep & Maint Premises,2020,Please attend ADDRESS REDACTED to carry out repairs and remove growth from the chimneys,27/01/2016,0000395323,255.50,Revenue,MAINCOAT LTD,00099244
South Ribble Council,http://statistics.data.gov.uk/doc/local-authority/30UN,Property Services,Rep & Maint Premises,2020,materials,27/01/2016,0000395323,453.88,Revenue,MAINCOAT LTD,00099244
South Ribble Council,http://statistics.data.gov.uk/doc/local-authority/30UN,Healthy Communities,Other Misc,4851,"Nike Core Polo x 20 - Various Sizes  =  275.00 Foundation SS Top x 4  =  43.80 Team Club Hoody ",22/01/2016,0000395166,628.65,Revenue,MAUDE SPORTS,131058
South Ribble Council,http://statistics.data.gov.uk/doc/local-authority/30UN,Area 1 - Penwortham Western Parishes,Professional Fees,4521,PROVISION OF STRAY DOG SERVICE - TO COVER DECEMBER 2015,13/01/2016,0000394413,461.45,Revenue,MORNINGSIDE KENNELS,00067755
South Ribble Council,http://statistics.data.gov.uk/doc/local-authority/30UN,Healthy Communities,External Contractors Charges,4575,Mayoral Banquet 2015,22/01/2016,0000395214,"3,755.67",Revenue,MOSS HOUSE FARM,00121808
South Ribble Council,http://statistics.data.gov.uk/doc/local-authority/30UN,Neighbourhood Admin & Support,External Contractors Charges,4575,"Catering - Moss Side Depot - 21st January 2016 - 7.15am  Bacon Barms0 Sausage Barms Tea coffee",29/01/2016,0000395324,324.00,Revenue,MOSS HOUSE FARM,00121808
South Ribble Council,http://statistics.data.gov.uk/doc/local-authority/30UN,Planning,Professional Fees,4510,advice,08/01/2016,0000389421,472.50,Revenue,MR ANTHONY GILL,130791
South Ribble Council,http://statistics.data.gov.uk/doc/local-authority/30UN,Planning,Professional Fees,4510,Professional fees in relation to ADDRESS REDACTED,22/01/2016,0000395158,"1,080.00",Revenue,MR ANTHONY GILL,130791
South Ribble Council,http://statistics.data.gov.uk/doc/local-authority/30UN,Area 3 - Parks/Leyland East West,External Contractors Charges,4570,REPAIRS TO CONDITIONER/MOWER FOLLWING DAMAGE CAUSED BY COLLISION ,06/01/2016,0000389422,571.02,Revenue,MR J W WILDING,131286
South Ribble Council,http://statistics.data.gov.uk/doc/local-authority/30UN,Healthy Communities,Other Misc,4851,Adventure Zoon Balance Bikes RRP 99.99 x 11 79.99 per Bike CE Approved Helmets Size 48-52cm,15/01/2016,0000394654,733.33,Revenue,MR M P WALLIS T/A WALLIS CYCLES,130801
South Ribble Council,http://statistics.data.gov.uk/doc/local-authority/30UN,Healthy Communities,Other Misc,4851,helmets,15/01/2016,0000394654,127.72,Revenue,MR M P WALLIS T/A WALLIS CYCLES,130801
South Ribble Council,http://statistics.data.gov.uk/doc/local-authority/30UN,Environmental Health,Professional Fees,4510,Fee - SRBC V Huntleys Country Stores.,06/01/2016,0000389350,"24,083.34",Revenue,MR NIGEL LAWRENCE QC,131396
South Ribble Council,http://statistics.data.gov.uk/doc/local-authority/30UN,Information Services,Peripherals,4247,Dell UltraSharp U2412M,13/01/2016,0000394397,185.00,Revenue,MYPREMIER LTD,130091
South Ribble Council,http://statistics.data.gov.uk/doc/local-authority/30UN,Information Services,Peripherals,4247,Western Digital WD Green 2TB,13/01/2016,0000394397,108.00,Revenue,MYPREMIER LTD,130091
South Ribble Council,http://statistics.data.gov.uk/doc/local-authority/30UN,Information Services,Peripherals,4247,Delivery As per quote ref: MQ153199,13/01/2016,0000394397,10.00,Revenue,MYPREMIER LTD,130091
South Ribble Council,http://statistics.data.gov.uk/doc/local-authority/30UN,Regeneration,Other Misc,4851,Element 1 Training - Providing a full day Training on `Increasing Voluntary Sector Influence` 4 Modules ,29/01/2016,0000395548,543.10,Revenue,National Association for Voluntary and Community A,131693
South Ribble Council,http://statistics.data.gov.uk/doc/local-authority/30UN,Property Services,Client Internal Charges,4590,"Weekly waste removal at Leyland Market, Leyland - for 2015/2016 - 10 yard FEL - 74.49 per lift ",15/01/2016,0000394844,437.45,Revenue,NEALES WASTE MANAGEMENT,130129
South Ribble Council,http://statistics.data.gov.uk/doc/local-authority/30UN,HR & Communications,Advertising,4848,PRINTING OF FORWARD - WINTER EDITION 2015,13/01/2016,0000394267,"4,165.00",Revenue,NEWSQUEST MEDIA GROUP LTD,00121934
South Ribble Council,http://statistics.data.gov.uk/doc/local-authority/30UN,HR & Communications,Advertising,4848,,13/01/2016,0000394267,365.00,Revenue,NEWSQUEST MEDIA GROUP LTD,00121934
South Ribble Council,http://statistics.data.gov.uk/doc/local-authority/30UN,Regeneration,Other Misc,4861,Event Management - Leyland Live,20/01/2016,0000395083,"1,000.00",Revenue,Nigel Stewart,131699
South Ribble Council,http://statistics.data.gov.uk/doc/local-authority/30UN,Regeneration,Other Misc,4861,Event Management - Penwortham Live,20/01/2016,0000395084,"1,000.00",Revenue,Nigel Stewart,131699
South Ribble Council,http://statistics.data.gov.uk/doc/local-authority/30UN,Regeneration,Other Misc,4861,Event Management - Longton  Live,20/01/2016,0000395085,"1,000.00",Revenue,Nigel Stewart,131699
South Ribble Council,http://statistics.data.gov.uk/doc/local-authority/30UN,Regeneration,Capital Expenditure,C234,Feeder pillar Installation,22/01/2016,0000395154,524.75,Revenue,NORTH STAR ESTATES LTD,130318
South Ribble Council,http://statistics.data.gov.uk/doc/local-authority/30UN,Area 2 - Waste Transport/Eastern & Central Teams,External Contractors Charges,4570,SPEC REPAIR (WINTER SERVICE) - JFC5891 - PO11 BND - PD,29/01/2016,0000395211,"1,891.18",Revenue,NORTH WEST MOWERS LTD,130577
South Ribble Council,http://statistics.data.gov.uk/doc/local-authority/30UN,Area 1 - Penwortham Western Parishes,Professional Fees,4514,DEPLOYMENT OF OFFICERS DECEMBER 2015,13/01/2016,0000394433,918.90,Revenue,NSL LTD,00116868
South Ribble Council,http://statistics.data.gov.uk/doc/local-authority/30UN,Area 1 - Penwortham Western Parishes,Other Misc,4855,CASH COLLECTION DECEMBER 2015,13/01/2016,0000394433,221.81,Revenue,NSL LTD,00116868
South Ribble Council,http://statistics.data.gov.uk/doc/local-authority/30UN,Area 1 - Penwortham Western Parishes,Professional Fees,4514,DEPLOYMENT OF OFFICERS NOVEMBER 2015,20/01/2016,0000395155,"1,219.57",Revenue,NSL LTD,00116868
South Ribble Council,http://statistics.data.gov.uk/doc/local-authority/30UN,Area 1 - Penwortham Western Parishes,Other Misc,4855,CASH COLLECTION  NOVEMBER 2015,20/01/2016,0000395155,151.48,Revenue,NSL LTD,00116868
South Ribble Council,http://statistics.data.gov.uk/doc/local-authority/30UN,Information Services,Peripherals,4247,"1yr Crisis Helpline for AD, Microsoft Exchange & Stonegate FW for period 12/02/16 - 11/02/17",20/01/2016,0000394886,"1,273.00",Revenue,NVIRON LTD,00028781
South Ribble Council,http://statistics.data.gov.uk/doc/local-authority/30UN,Neighbourhood Admin & Support,Vehicle Running Costs,3132,"17,000 LITRES DIESEL (@ 80.30 pence per litre)",08/01/2016,0000394375,"13,651.00",Revenue,NWF FUELS T/A T SPLITT,131356
South Ribble Council,http://statistics.data.gov.uk/doc/local-authority/30UN,Regeneration,Consultancy Fees,4541,Deliver a business and innovation advice service within the specified geographical area around Longton,13/01/2016,0000394268,600.00,Revenue,ORVIA ENTERPRISE LTD,130039
South Ribble Council,http://statistics.data.gov.uk/doc/local-authority/30UN,Regeneration,Consultancy Fees,4541,Deliver a business and innovation advice service within the specified geographical area around Longton,13/01/2016,0000394354,"2,200.00",Revenue,ORVIA ENTERPRISE LTD,130039
South Ribble Council,http://statistics.data.gov.uk/doc/local-authority/30UN,Area 1 - Penwortham Western Parishes,Materials General,4040,"60,000 STELIO SELF ADHESIVE TICKETS @ 6.95  PER 1,000",27/01/2016,0000395254,312.75,Revenue,PAPERWORK UK LTD,00108834
South Ribble Council,http://statistics.data.gov.uk/doc/local-authority/30UN,Property Services,Rep & Maint Premises,2020,Please carry out work for re-decoration to the internal staircase at the Civic Centre. ,08/01/2016,0000394355,"2,454.17",Revenue,PDP PROPERTY SERVICES LTD,00106975
South Ribble Council,http://statistics.data.gov.uk/doc/local-authority/30UN,Property Services,Rep & Maint Premises,2020,Please attend site Moss Side Depot - please carry out work in painting the wall in the main corridor rec,20/01/2016,0000395086,293.40,Revenue,PDP PROPERTY SERVICES LTD,00106975
South Ribble Council,http://statistics.data.gov.uk/doc/local-authority/30UN,Property Services,Rep & Maint Premises,2020,Please supply 10 Ltr of magnolia acrylic egg shell for Leyland Market,20/01/2016,0000395086,143.80,Revenue,PDP PROPERTY SERVICES LTD,00106975
South Ribble Council,http://statistics.data.gov.uk/doc/local-authority/30UN,Healthy Communities,Other Misc,4851,First Payment for event Management for 1500.00,13/01/2016,0000389207,"1,500.00",Revenue,Pennine Events,131103
South Ribble Council,http://statistics.data.gov.uk/doc/local-authority/30UN,Healthy Communities,Other Misc,4851,First Payment of the Sponsorship Services for South Ribble Sports Awards,13/01/2016,0000389208,750.00,Revenue,Pennine Events,131103
South Ribble Council,http://statistics.data.gov.uk/doc/local-authority/30UN,Environmental Health,Professional Fees,4521,admin fee,08/01/2016,0000394350,66.65,Revenue,Personnel Checks,131483
South Ribble Council,http://statistics.data.gov.uk/doc/local-authority/30UN,Environmental Health,Professional Fees,4521,,08/01/2016,0000394350,220.00,Revenue,Personnel Checks,131483
South Ribble Council,http://statistics.data.gov.uk/doc/local-authority/30UN,Environmental Health,Professional Fees,4521,admin fee,13/01/2016,0000394427,106.64,Revenue,Personnel Checks,131483
South Ribble Council,http://statistics.data.gov.uk/doc/local-authority/30UN,Environmental Health,Professional Fees,4521,,13/01/2016,0000394427,352.00,Revenue,Personnel Checks,131483
South Ribble Council,http://statistics.data.gov.uk/doc/local-authority/30UN,Environmental Health,Professional Fees,4521,admin fee,13/01/2016,0000394428,106.64,Revenue,Personnel Checks,131483
South Ribble Council,http://statistics.data.gov.uk/doc/local-authority/30UN,Environmental Health,Professional Fees,4521,,13/01/2016,0000394428,352.00,Revenue,Personnel Checks,131483
South Ribble Council,http://statistics.data.gov.uk/doc/local-authority/30UN,Environmental Health,Professional Fees,4521,admin fee,13/01/2016,0000394429,159.96,Revenue,Personnel Checks,131483
South Ribble Council,http://statistics.data.gov.uk/doc/local-authority/30UN,Environmental Health,Professional Fees,4521,,13/01/2016,0000394429,528.00,Revenue,Personnel Checks,131483
South Ribble Council,http://statistics.data.gov.uk/doc/local-authority/30UN,Neighbourhood Admin & Support,Vehicle Running Costs,3132,FUEL FOR NOVEMBER 2015,06/01/2016,0000389349,325.91,Revenue,PETROMEX MILLBROOK WAY SERVICE STATION,00062572
South Ribble Council,http://statistics.data.gov.uk/doc/local-authority/30UN,Information Services,Peripherals,4244,BT Converse 2200 Black telephones ref: BT30437,15/01/2016,0000394553,585.00,Revenue,PHILLIPS BUSINESS SOLUTIONS,00032214
South Ribble Council,http://statistics.data.gov.uk/doc/local-authority/30UN,Information Services,Peripherals,4244,BT Converse 2300 Black telephones ref: BT30439,15/01/2016,0000394553,96.38,Revenue,PHILLIPS BUSINESS SOLUTIONS,00032214
South Ribble Council,http://statistics.data.gov.uk/doc/local-authority/30UN,Property Services,Operational Furniture & Equip,4012,2015/2016 contract for the provision of sanitary services at the Civic Centre,06/01/2016,0000389458,"1,128.53",Revenue,PHS GROUP PLC,00031309
South Ribble Council,http://statistics.data.gov.uk/doc/local-authority/30UN,Property Services,Operational Furniture & Equip,4012,"2015/2016 contract for the provision of sanitary services at Moss Side Depot, Bison Place, Leyland",06/01/2016,0000389459,430.95,Revenue,PHS GROUP PLC,00031309
South Ribble Council,http://statistics.data.gov.uk/doc/local-authority/30UN,Information Services,Stationery,4133,"50,000 sheets Evolution Everyday  A4 80gm 5000 sheets Evolution Everyday A3 80gm 15000 sheets ",20/01/2016,0000395156,354.60,Revenue,PREMIER PAPER GROUP LTD,00022606
South Ribble Council,http://statistics.data.gov.uk/doc/local-authority/30UN,Area 2 - Waste Transport/Eastern & Central Teams,Materials General,4040,TYRE REPAIRS - TR155 - AW,08/01/2016,0000389425,406.05,Revenue,PRESTON TYRE SPECIALISTS,00109516
South Ribble Council,http://statistics.data.gov.uk/doc/local-authority/30UN,Area 2 - Waste Transport/Eastern & Central Teams,External Contractors Charges,4570,TR156,29/01/2016,0000395265,553.80,Revenue,PRESTON TYRE SPECIALISTS,00109516
South Ribble Council,http://statistics.data.gov.uk/doc/local-authority/30UN,Area 2 - Waste Transport/Eastern & Central Teams,Materials General,4040,4 TYRES - PF08 PGY - JFC6078 - AW,29/01/2016,0000395312,306.08,Revenue,PRESTON TYRE SPECIALISTS,00109516
South Ribble Council,http://statistics.data.gov.uk/doc/local-authority/30UN,Shared Financial Services,Consultancy Fees,4541,VAT advice in relation to leisure review,22/01/2016,0000394845,"3,000.00",Revenue,PRICEWATERHOUSECOOPERS,00048392
South Ribble Council,http://statistics.data.gov.uk/doc/local-authority/30UN,Democratic Services,Printing,4127,"12,000 outgoing envelopes",27/01/2016,0000395225,374.40,Revenue,PRINT IMAGE NETWORK LTD,00089199
South Ribble Council,http://statistics.data.gov.uk/doc/local-authority/30UN,Information Services,Postage,4292,Franking Top up Funds,08/01/2016,0000394361,"9,000.00",Revenue,Purchase Power,00093923
South Ribble Council,http://statistics.data.gov.uk/doc/local-authority/30UN,Information Services,Peripherals,4262,trans fee,08/01/2016,0000394361,90.00,Revenue,Purchase Power,00093923
South Ribble Council,http://statistics.data.gov.uk/doc/local-authority/30UN,Information Services,Training Expense-Course Fees,1420,Skills Licence,06/01/2016,0000389209,"1,850.00",Revenue,QA LIMITED,00113638
South Ribble Council,http://statistics.data.gov.uk/doc/local-authority/30UN,Property Services,Rep & Maint Premises,2020,Please supply materials and labour attend site craft units 2/3 - excavate down into the floor and insert ,13/01/2016,0000389376,270.00,Revenue,RED ROSE BUILDING MAINTENANCE,00085410
South Ribble Council,http://statistics.data.gov.uk/doc/local-authority/30UN,Property Services,Rep & Maint Premises,2020,materials,13/01/2016,0000389376,38.00,Revenue,RED ROSE BUILDING MAINTENANCE,00085410
South Ribble Council,http://statistics.data.gov.uk/doc/local-authority/30UN,Property Services,Rep & Maint Premises,2020,"ADDRESS REDACTED, Walton Summit1. Please unblock the drain on car park power wash walk way",29/01/2016,0000395542,260.00,Revenue,RED ROSE BUILDING MAINTENANCE,00085410
South Ribble Council,http://statistics.data.gov.uk/doc/local-authority/30UN,Property Services,Rep & Maint Premises,2020,"Excavate below damp proof course, remove bricks and insert new damp proof course",29/01/2016,0000395544,"1,080.00",Revenue,RED ROSE BUILDING MAINTENANCE,00085410
South Ribble Council,http://statistics.data.gov.uk/doc/local-authority/30UN,Property Services,Rep & Maint Premises,2020,materials,29/01/2016,0000395544,105.00,Revenue,RED ROSE BUILDING MAINTENANCE,00085410
South Ribble Council,http://statistics.data.gov.uk/doc/local-authority/30UN,Property Services,Rep & Maint Premises,2020,"Attend Broadgate cycles, remove old wooden shed dispose of. Cut down the tree, dig roots and kill off",29/01/2016,0000395545,50.00,Revenue,RED ROSE BUILDING MAINTENANCE,00085410
South Ribble Council,http://statistics.data.gov.uk/doc/local-authority/30UN,Property Services,Rep & Maint Premises,2020,materials,29/01/2016,0000395545,200.00,Revenue,RED ROSE BUILDING MAINTENANCE,00085410
South Ribble Council,http://statistics.data.gov.uk/doc/local-authority/30UN,Area 3 - Parks/Leyland East West,Grounds Maint Cntrctrs Chgs,4657,REPLACE PIPE HEADWALL IN SHAW BROOK NEAR TO CUERDEN AVENUE LEYLAND,20/01/2016,0000389363,"3,260.00",Revenue,Reid Construction & Civil Engineering Ltd,131544
South Ribble Council,http://statistics.data.gov.uk/doc/local-authority/30UN,Area 3 - Parks/Leyland East West,Grounds Maint Cntrctrs Chgs,4657,REPLACE PIPE HEADWALL IN SHAW BROOK NEAR TO CUERDEN AVENUE LEYLAND,20/01/2016,0000394301,"3,580.00",Revenue,Reid Construction & Civil Engineering Ltd,131544
South Ribble Council,http://statistics.data.gov.uk/doc/local-authority/30UN,Environmental Health,External Contractors Charges,4570,Works as per NAME REDACTED,22/01/2016,0000395162,"1,099.00",Revenue,Reid Construction & Civil Engineering Ltd,131544
South Ribble Council,http://statistics.data.gov.uk/doc/local-authority/30UN,Environmental Health,External Contractors Charges,4570,Job on Cumberland Ave per NAME REDACTED,22/01/2016,0000395163,"1,687.00",Revenue,Reid Construction & Civil Engineering Ltd,131544
South Ribble Council,http://statistics.data.gov.uk/doc/local-authority/30UN,HR & Communications,Payroll Suspense,1741,ANNUAL SUBS FOR DREDDIHOUGH MEMBERSHIP NUMBER 1190954 2016 MEMBERSHIP,13/01/2016,0000394662,509.00,Revenue,RICS,00033307
South Ribble Council,http://statistics.data.gov.uk/doc/local-authority/30UN,Property Services,Operational Furniture & Equip,4010,"For : BCIS online subscription Cost : 1720 per annum plus VAT Cost code : 125000/4010",15/01/2016,0000394861,"1,720.00",Revenue,RICS,00033307
South Ribble Council,http://statistics.data.gov.uk/doc/local-authority/30UN,Neighbourhood Admin & Support,Operational Furniture & Equip,4010,BAG LOOP - B05DL110,22/01/2016,0000394887,160.00,Revenue,ROBERT ACTON PRODUCTS DEVELOPMENTS,00014452
South Ribble Council,http://statistics.data.gov.uk/doc/local-authority/30UN,Neighbourhood Admin & Support,Operational Furniture & Equip,4010,BAG LOOP - B05DL110,22/01/2016,0000394887,160.00,Revenue,ROBERT ACTON PRODUCTS DEVELOPMENTS,00014452
South Ribble Council,http://statistics.data.gov.uk/doc/local-authority/30UN,HR & Communications,Advertising,4848,WAR MEMORIAL DEDICATION VIDEO,15/01/2016,0000394865,375.00,Revenue,ROLAND TURNER,130386
South Ribble Council,http://statistics.data.gov.uk/doc/local-authority/30UN,Information Services,Postage,4295,,06/01/2016,0000383499,321.55,Revenue,ROYAL MAIL GROUP PLC,00033543
South Ribble Council,http://statistics.data.gov.uk/doc/local-authority/30UN,Regeneration,Other Misc,4851,Venue catering (sandwich buffet) and refreshments (Tea and coffees) for 70 people - 5 per head.,13/01/2016,0000394404,366.63,Revenue,SAMLESBURY HALL,131246
South Ribble Council,http://statistics.data.gov.uk/doc/local-authority/30UN,Property Services,Energy Costs,2303,2/11/15 to 30/11/15,06/01/2016,0000389332,"1,881.13",Revenue,SCOTTISH HYDRO ELECTRIC,130051
South Ribble Council,http://statistics.data.gov.uk/doc/local-authority/30UN,Property Services,Energy Costs,2304,8/12/15 to 6/1/16,20/01/2016,0000394854,"1,353.68",Revenue,SCOTTISH HYDRO ELECTRIC,130051
South Ribble Council,http://statistics.data.gov.uk/doc/local-authority/30UN,Property Services,Energy Costs,2307,ccl,20/01/2016,0000394854,84.88,Revenue,SCOTTISH HYDRO ELECTRIC,130051
South Ribble Council,http://statistics.data.gov.uk/doc/local-authority/30UN,Property Services,Energy Costs,2304,27/9/15 to 18/12/15,20/01/2016,0000394855,"1,642.30",Revenue,SCOTTISH HYDRO ELECTRIC,130051
South Ribble Council,http://statistics.data.gov.uk/doc/local-authority/30UN,Property Services,Energy Costs,2307,CCL,20/01/2016,0000394855,114.55,Revenue,SCOTTISH HYDRO ELECTRIC,130051
South Ribble Council,http://statistics.data.gov.uk/doc/local-authority/30UN,Regeneration,Consultancy Fees,4536,"R & M 2015/16 payable by 12 monthly instalments of 13,141.90",27/01/2016,0000394373,"13,141.90",Revenue,SERCO LEISURE (OP) LTD,00094906
South Ribble Council,http://statistics.data.gov.uk/doc/local-authority/30UN,Healthy Communities,Other Misc,4851,"24 x O Markers - 3mm Aluminium composite option - set of 200 Unit Price54.29 Net Price - 1,302.96 ",13/01/2016,0000394392,"1,322.32",Revenue,Signs Express,131658
South Ribble Council,http://statistics.data.gov.uk/doc/local-authority/30UN,Area 2 - Waste Transport/Eastern & Central Teams,Cap Vehicles,C440,graphics,27/01/2016,0000394372,"4,635.00",Revenue,SIGNS PRESTON LTD T/A SIGNS EXPRESS CENTRAL LANCS,131706
South Ribble Council,http://statistics.data.gov.uk/doc/local-authority/30UN,Development Enterprise & Comm Mgnt,Advertising,4842,"Provision of Christmas Dinner for the Volunteer staff at SRBC Museum and Exhibition Centre",08/01/2016,0000388938,453.37,Revenue,SLATERS CATERING LTD,131032
South Ribble Council,http://statistics.data.gov.uk/doc/local-authority/30UN,Environmental Health,External Contractors Charges,4570,Clean up of ADDRESS REDACTED on 4.11.15 ,08/01/2016,0000389352,"1,000.00",Revenue,SMJ CONTRACT CLEANING,130044
South Ribble Council,http://statistics.data.gov.uk/doc/local-authority/30UN,Area 2 - Waste Transport/Eastern & Central Teams,Cap Vehicles,C440,PURCHASE OF TWIN PACK REFUSE VEHICLE (VK09 AHJ),13/01/2016,0000389351,"36,000.00",Revenue,SPECIALIST FLEET SERVICES LTD (SFS),00118659
South Ribble Council,http://statistics.data.gov.uk/doc/local-authority/30UN,Area 2 - Waste Transport/Eastern & Central Teams,Contract Hire & Lease Costs,3216,FURTHER TO PUR0022658 - EXTENSION TO CONTRACT HIRE VN58GFX TO 1ST JANUARY 2016,13/01/2016,0000389416,470.00,Revenue,SPECIALIST FLEET SERVICES LTD (SFS),00118659
South Ribble Council,http://statistics.data.gov.uk/doc/local-authority/30UN,Area 2 - Waste Transport/Eastern & Central Teams,Contract Hire & Lease Costs,3216,FURTHER TO PUR0022658 - EXTENSION TO CONTRACT HIRE VN58 GFV - TO 1ST JANUARY 2016,13/01/2016,0000389427,470.00,Revenue,SPECIALIST FLEET SERVICES LTD (SFS),00118659
South Ribble Council,http://statistics.data.gov.uk/doc/local-authority/30UN,Area 2 - Waste Transport/Eastern & Central Teams,Contract Hire & Lease Costs,3216,FURTHER TO PUR0022658 - EXTENSION OF HIRE CONTRACT VN58 GFU TO 1ST JANUARY 2016,13/01/2016,0000389428,470.00,Revenue,SPECIALIST FLEET SERVICES LTD (SFS),00118659
South Ribble Council,http://statistics.data.gov.uk/doc/local-authority/30UN,Scrutiny,Professional Fees,4510,For the carrying out of a functional economic area research and assessment for South Ribble,27/01/2016,0000394667,"4,990.50",Revenue,SQW Limited,131707
South Ribble Council,http://statistics.data.gov.uk/doc/local-authority/30UN,Property Services,Peripherals,4243,Provision of energy management system 2015 / 2016,06/01/2016,0000389429,324.00,Revenue,STC ENERGY MANAGEMENT LTD,00005568
South Ribble Council,http://statistics.data.gov.uk/doc/local-authority/30UN,Regeneration,Capital Expenditure,C234,"Swithland design plant container in FSC mix Redwood left natural, 1m long x 1m wide x 800mm",13/01/2016,0000389374,"1,000.00",Revenue,STREET DESIGN LTD,131287
South Ribble Council,http://statistics.data.gov.uk/doc/local-authority/30UN,Regeneration,Capital Expenditure,C234,"Sub-surface ground investigation, testing and report for WW1 Bridge at Lostock Hall quotation  no E1368",13/01/2016,0000389364,"2,218.90",Revenue,SUB SURFACE NORTH WEST LTD,00044079
South Ribble Council,http://statistics.data.gov.uk/doc/local-authority/30UN,Area 2 - Waste Transport/Eastern & Central Teams,External Contractors Charges,4570,SPEC REPAIR - VN58GFV - JFC6091 - PD,06/01/2016,0000389434,315.23,Revenue,TERBERG MATEC UK LTD,00058625
South Ribble Council,http://statistics.data.gov.uk/doc/local-authority/30UN,Area 2 - Waste Transport/Eastern & Central Teams,Materials General,4040,RAVE RAIL SWITCH - PJ62 UCM - JFC6134 - AW,20/01/2016,0000394837,270.54,Revenue,TERBERG MATEC UK LTD,00058625
South Ribble Council,http://statistics.data.gov.uk/doc/local-authority/30UN,Area 2 - Waste Transport/Eastern & Central Teams,External Contractors Charges,4570,1 SPEC REPAIR PO13 UUM JFC 6155,22/01/2016,0000394878,382.06,Revenue,TERBERG MATEC UK LTD,00058625
South Ribble Council,http://statistics.data.gov.uk/doc/local-authority/30UN,Legal,Publications,4142,aldridge R45,15/01/2016,0000394340,374.00,Revenue,THOMSON REUTERS,00034979
South Ribble Council,http://statistics.data.gov.uk/doc/local-authority/30UN,Healthy Communities,Other Misc,4851,400 20pp A5 Beyond Sports Booklets - Full Colour Total Price - 385.00,08/01/2016,0000394356,385.00,Revenue,TOWNSEND PRINT SERVICES LTD,00037170
South Ribble Council,http://statistics.data.gov.uk/doc/local-authority/30UN,Healthy Communities,Provisions,4310,"Stock for the Tea room , to provide TC&B for meetings",06/01/2016,0000389371,69.80,Revenue,TREVORS FOOD SERVICE,130829
South Ribble Council,http://statistics.data.gov.uk/doc/local-authority/30UN,Healthy Communities,Provisions,4310,,06/01/2016,0000389371,189.51,Revenue,TREVORS FOOD SERVICE,130829
South Ribble Council,http://statistics.data.gov.uk/doc/local-authority/30UN,Property Services,Water Charges,2511,30/9/15 to 4/1/16,27/01/2016,0000395221,519.45,Revenue,UNITED UTILITIES WATER PLC,00029845
South Ribble Council,http://statistics.data.gov.uk/doc/local-authority/30UN,Healthy Communities,Operational Furniture & Equip,4012,coffee machine hire Jan,13/01/2016,0000394362,322.11,Revenue,VENDING ENTERPRISES,00101501
South Ribble Council,http://statistics.data.gov.uk/doc/local-authority/30UN,Development Enterprise & Comm Mgnt,Other Misc,4861,"Traffic Safety and Management for road closure on Hough Lane, Leyland As Per Quote VB/TM/15/1564",08/01/2016,0000388697,600.00,Revenue,VENTBROOK LTD,131218
South Ribble Council,http://statistics.data.gov.uk/doc/local-authority/30UN,Information Services,Peripherals,4269,"Annual purchase order for ISDN lines, line rentals & call charges for period 01/04/15 - 31/03/16",08/01/2016,0000394302,"1,124.25",Revenue,VODAFONE RE:CABLE & WIRELESS UK,130810
South Ribble Council,http://statistics.data.gov.uk/doc/local-authority/30UN,Information Services,Peripherals,4247,"Annual purchase order for link, internet & router for period 01/04/15 - 31/03/16",08/01/2016,0000394303,"1,312.66",Revenue,VODAFONE RE:CABLE & WIRELESS UK,130810
South Ribble Council,http://statistics.data.gov.uk/doc/local-authority/30UN,Information Services,Processing-Internal,4212,"Annual purchase order for GSi Convergence Framewotk, PSN for period 01/04/15 - 31/03/16",08/01/2016,0000394304,"2,576.63",Revenue,VODAFONE RE:CABLE & WIRELESS UK,130810
South Ribble Council,http://statistics.data.gov.uk/doc/local-authority/30UN,Regeneration,Consultancy Fees,4541,"Office Furniture Ref Mere Project, Longton Office: 3 x chairs 3 x desks2 x Upholstered chairs",08/01/2016,0000389216,972.00,Revenue,WAGSTAFF GROUP,00072847
South Ribble Council,http://statistics.data.gov.uk/doc/local-authority/30UN,Legal,Balance Sheet,0030,"Test Track Development osts associated with the Test Track Development(More than one invoice ",15/01/2016,0000394836,"1,889.00",Revenue,WEIGHTMANS LLP,00120867
South Ribble Council,http://statistics.data.gov.uk/doc/local-authority/30UN,Area 3 - Parks/Leyland East West,Grounds Maint Cntrctrs Chgs,4657,Installation and removal of 25` Christmas Trees at the agreed locations Erection commencing 30th Nov,15/01/2016,0000394663,"6,280.00",Revenue,WESTFIELD TREE SERVICES LTD,00114226
South Ribble Council,http://statistics.data.gov.uk/doc/local-authority/30UN,Area 3 - Parks/Leyland East West,Grounds Maint Cntrctrs Chgs,4657,1x 25` Christmas Tree at Hawksbury Drive Penwortham Erect week commencing 30th November 2015,15/01/2016,0000394664,875.00,Revenue,WESTFIELD TREE SERVICES LTD,00114226
South Ribble Council,http://statistics.data.gov.uk/doc/local-authority/30UN,Revenues Plus,Postage,4291,Mail Services - Revenues - November,06/01/2016,0000389388,415.65,Revenue,WHISTL  UK LTD FORMERLY TNT POST,131310
South Ribble Council,http://statistics.data.gov.uk/doc/local-authority/30UN,Revenues Plus,Postage,4291,Mail Services - Revenues - December,08/01/2016,0000394312,422.53,Revenue,WHISTL  UK LTD FORMERLY TNT POST,131310
South Ribble Council,http://statistics.data.gov.uk/doc/local-authority/30UN,Revenues Plus,Postage,4291,Mail Services - Benefits - December,08/01/2016,0000394313,289.35,Revenue,WHISTL  UK LTD FORMERLY TNT POST,131310
South Ribble Council,http://statistics.data.gov.uk/doc/local-authority/30UN,Revenues Plus,Postage,4291,Mail Services - Revenues - December,13/01/2016,0000394652,327.35,Revenue,WHISTL  UK LTD FORMERLY TNT POST,131310
South Ribble Council,http://statistics.data.gov.uk/doc/local-authority/30UN,Governance & Business Transf Mgnt,Other Misc,4851,LEGAL ADVICE,29/01/2016,0000395552,"9,442.75",Revenue,WILKIN CHAPMAN LLP,131825
South Ribble Council,http://statistics.data.gov.uk/doc/local-authority/30UN,Area 3 - Parks/Leyland East West,Capital Expenditure,C230,"DE-SILTING FISH POND, LAYING COIR PALLETS CONTRUCTING RETAIN WALL WORDEN PARK",20/01/2016,0000394857,"14,812.50",Revenue,WILLIAM PYE LTD,00031590
South Ribble Council,http://statistics.data.gov.uk/doc/local-authority/30UN,Environmental Health,Professional Fees,4520,Referral - Taxi Licensing ,08/01/2016,0000389373,175.00,Revenue,WRIGHTINGTON WIGAN & LEIGH NHS FOUNDATION TRUST,131288
South Ribble Council,http://statistics.data.gov.uk/doc/local-authority/30UN,Environmental Health,Professional Fees,4520,OHU referral NAME REDACTED,08/01/2016,0000389373,175.00,Revenue,WRIGHTINGTON WIGAN & LEIGH NHS FOUNDATION TRUST,131288
South Ribble Council,http://statistics.data.gov.uk/doc/local-authority/30UN,Environmental Health,Professional Fees,4520,Referral - NAME REDACTED,08/01/2016,0000389373,175.00,Revenue,WRIGHTINGTON WIGAN & LEIGH NHS FOUNDATION TRUST,131288
South Ribble Council,http://statistics.data.gov.uk/doc/local-authority/30UN,HR & Communications,Training Expense-Course Fees,1408,OCCUPATIONAL HEALTH CHECKS,06/01/2016,0000389430,944.40,Revenue,WRIGHTINGTON WIGAN & LEIGH NHS FOUNDATION TRUST,131288
South Ribble Council,http://statistics.data.gov.uk/doc/local-authority/30UN,HR & Communications,Training Expense-Course Fees,1408,,06/01/2016,0000389430,110.00,Revenue,WRIGHTINGTON WIGAN & LEIGH NHS FOUNDATION TRUST,131288
South Ribble Council,http://statistics.data.gov.uk/doc/local-authority/30UN,Environmental Health,Professional Fees,4520,"Referral - NAME REDACTED, Taxi Licensing.",15/01/2016,0000394668,175.00,Revenue,WRIGHTINGTON WIGAN & LEIGH NHS FOUNDATION TRUST,131288
South Ribble Council,http://statistics.data.gov.uk/doc/local-authority/30UN,Environmental Health,Professional Fees,4520,Order for Licensing Referrals for - NAMES REDACTED,15/01/2016,0000394668,525.00,Revenue,WRIGHTINGTON WIGAN & LEIGH NHS FOUNDATION TRUST,131288
South Ribble Council,http://statistics.data.gov.uk/doc/local-authority/30UN,Regeneration,Other Misc,485I,"Concept Development research, development and refinement based on providing 2-3 initial routes",22/01/2016,0000395152,"2,050.00",Revenue,WRITE ANGLE PR & MARKETING LTD,00095303
South Ribble Council,http://statistics.data.gov.uk/doc/local-authority/30UN,Regeneration,Other Misc,485I,"Concept Development research, development and refinement - based on providing 2-3 initial routes",22/01/2016,0000395169,"1,265.00",Revenue,WRITE ANGLE PR & MARKETING LTD,00095303
South Ribble Council,http://statistics.data.gov.uk/doc/local-authority/30UN,Regeneration,Other Misc,485K,"Concept Development research, development and refinement - based on providing 2-3 initial routes ",22/01/2016,0000395169,485.00,Revenue,WRITE ANGLE PR & MARKETING LTD,00095303
South Ribble Council,http://statistics.data.gov.uk/doc/local-authority/30UN,Regeneration,Other Misc,485K,"Concept Development Research, development and refinement - based on providing 2-3 initial routes ",22/01/2016,0000395230,"1,200.00",Revenue,WRITE ANGLE PR & MARKETING LTD,00095303
